Workbook

Sheet 说明
A1: 说明
A2: 必看：
A3: 1. 严格按照VIX表左边绿色步骤来，点击左边绿色方框，点完了才有数值显示！
A4: 2. 如果之前已经导入过数据了，可以不再导入dde数据，但是必须要要点击计算VIX开始
A5: 3. 无风险利率可以自己输入
A6: 4.如果不知道什么叫近月合约和远月合约，可以先百度一下
A7: 5.一定一定一定一定仔细看跳出来的对话框指引
A8: 选读：出现错误看下面部分
A9: 1.当你导入的期权数据存在很多卖价买价缺失值时，结果精确度下降，全部没有数据那种，就不要导入了，会出现错误，或者看起来没导入数据
A10: 2.无限易T型面板必须是左边为看涨右边为看跌
A11: 3. 注意，如果出现报错，记得检查自己的行情源：比如，是否到期日出现错误！比如是否所有的卖价买价全部为缺失值
A89: 说明
A90: 说明
A91: 说明
A92: 说明
A93: 说明
A94: 说明
A95: 说明

Sheet VIX
A1: 点击绿色方框
A3: STEP 1 | F3: 更新时间 | H3: VIX
F4: =NOW() -> 45320.46099 | H4: =100*SQRT((H12*H16*(H13*525600-43200)/((H13-H12)*525600)+H13*H17*(43200-H12*525600)/((H13-H12)*525600))*525600/43200) -> 19.13865023
A5: STEP 2
F7: 输入 | J7: SDK | K7: K | L7: c-p | M7: 价外数据 | N7: 到期日 | O7: 合约乘数 | P7: 更新时间 | Q7: 合约状态 | R7: 品种 | S7: 交易所 | T7: 昨结 | U7: 昨收 | V7: 今结 | W7: 今收 | X7: 跌停 | Y7: 涨停 | Z7: 最低 | AA7: 最高 | AB7: 今开 | AC7: Rho | AD7: Theta | AE7: Vega | AF7: Gamma | AG7: Delta | AH7: MidIV | AI7: AskIV | AJ7: BidIV | AK7: IV | AL7: 内在价值 | AM7: 时间价值 | AN7: 持仓量 | AO7: 成交量 | AP7: 卖量 | AQ7: 卖价 | AR7: 买价 | AS7: 买量 | AT7: 涨跌% | AU7: 涨跌 | AV7: 持仓盈亏 | AW7: 净持仓 | AX7: 最新 | AY7: 执行价 | AZ7: 最新 | BA7: 净持仓 | BB7: 持仓盈亏 | BC7: 涨跌 | BD7: 涨跌% | BE7: 买量 | BF7: 买价 | BG7: 卖价 | BH7: 卖量 | BI7: 成交量 | BJ7: 持仓量 | BK7: 时间价值 | BL7: 内在价值 | BM7: IV | BN7: BidIV | BO7: AskIV | BP7: MidIV | BQ7: Delta | BR7: Gamma | BS7: Vega | BT7: Theta | BU7: Rho | BV7: 今开 | BW7: 最高 | BX7: 最低 | BY7: 涨停 | BZ7: 跌停 | CA7: 今收 | CB7: 今结 | CC7: 昨收 | CD7: 昨结 | CE7: 交易所 | CF7: 品种 | CG7: 合约状态 | CH7: 更新时间 | CI7: 合约乘数 | CJ7: 到期日
A8: STEP 3 | F8: 无风险利率 | H8: 0.02 | J8: =(K9-K8)/2/K8^2*M8*EXP($H$8*$H$12) -> 2.615858344e-06 | K8: =Extract_Non_numbers(AY8) -> 2075 | L8: =ABS(AX8-AZ8) -> 238.4 | M8: =IF(K8>$H$14,(AR8+AQ8)/2,(BF8+BG8)/2) -> 0.9 | N8: 20240219 | O8: 100 | P8: =[1]!UPDATETIME -> 10:48:55.400 | Q8: =[1]!INST_STATE -> 连续交易 | R8: HO | S8: CFFEX | T8: =[1]!PRESETTLEPRICE -> 240 | U8: =[1]!PRECLOSE -> 232.6 | V8: =[1]!SETTLEPRICE ->  | W8: =[1]!CLOSEPRICE ->  | X8: =[1]!LOWERLIMITPRICE -> 8.8 | Y8: =[1]!UPPERLIMITPRICE -> 471.2 | Z8: =[1]!LOW -> 237.8 | AA8: =[1]!HIGH -> 247 | AB8: =[1]!OPENPRICE -> 237.8 | AC8: =[1]!OPTION_RHO -> 1.175933465 | AD8: =[1]!OPTION_THETA -> -0.1957554 | AE8: =[1]!OPTION_VEGA -> 0.1758996497 | AF8: =[1]!OPTION_GAMMA -> 0.0002874433574 | AG8: =[1]!OPTION_DELTA -> 0.9877488147 | AH8: =[1]!OPTION_MIDVOLATILITY ->  | AI8: =[1]!OPTION_ASKVOLATILITY ->  | AJ8: =[1]!OPTION_BIDVOLATILITY ->  | AK8: =[1]!OPTION_VOLATILITY -> 31.53077067 | AL8: =[1]!INTRINSICVALUE -> 234 | AM8: =[1]!TIMEVALUE -> 5.4 | AN8: =[1]!POSIVOL -> 19 | AO8: =[1]!TRADEVOLUME -> 43 | AP8: =[1]!ASKVOLUME1 -> 6 | AQ8: =[1]!ASKPRICE1 -> 233 | AR8: =[1]!BIDPRICE1 -> 231 | AS8: =[1]!BIDVOLUME1 -> 6 | AT8: =[1]!NETCHANGERATE -> -0.25% | AU8: =[1]!NETCHANGE -> -0.6 | AV8: =[1]!MTMPL2375314700 -> 0 | AW8: =[1]!NETVOLUME2375314700 -> 0 | AX8: =[1]!LASTPRICE -> 239.4 | AY8: 2075 | AZ8: =[2]!LASTPRICE -> 1 | BA8: =[2]!NETVOLUME2375314700 -> 0 | BB8: =[2]!MTMPL2375314700 -> 0 | BC8: =[2]!NETCHANGE -> 0 | BD8: =[2]!NETCHANGERATE -> 0.00% | BE8: =[2]!BIDVOLUME1 -> 25 | BF8: =[2]!BIDPRICE1 -> 0.8 | BG8: =[2]!ASKPRICE1 -> 1 | BH8: =[2]!ASKVOLUME1 -> 66 | BI8: =[2]!TRADEVOLUME -> 61 | BJ8: =[2]!POSIVOL -> 648 | BK8: =[2]!TIMEVALUE -> 1 | BL8: =[2]!INTRINSICVALUE -> 0 | BM8: =[2]!OPTION_VOLATILITY -> 22.26563426 | BN8: =[2]!OPTION_BIDVOLATILITY -> 21.53321241 | BO8: =[2]!OPTION_ASKVOLATILITY -> 22.26563426 | BP8: =[2]!OPTION_MIDVOLATILITY -> 21.89942333 | BQ8: =[2]!OPTION_DELTA -> -0.01989306757 | BR8: =[2]!OPTION_GAMMA -> 0.00039793775 | BS8: =[2]!OPTION_VEGA -> 0.2665738344 | BT8: =[2]!OPTION_THETA -> -0.1364328524 | BU8: =[2]!OPTION_RHO -> -0.02690836236 | BV8: =[2]!OPENPRICE -> 1.4 | BW8: =[2]!HIGH -> 1.4 | BX8: =[2]!LOW -> 0.8 | BY8: =[2]!UPPERLIMITPRICE -> 232.2 | BZ8: =[2]!LOWERLIMITPRICE -> 0.2 | CA8: =[2]!CLOSEPRICE ->  | CB8: =[2]!SETTLEPRICE ->  | CC8: =[2]!PRECLOSE -> 1 | CD8: =[2]!PRESETTLEPRICE -> 1 | CE8: CFFEX | CF8: HO | CG8: =[2]!INST_STATE -> 连续交易 | CH8: =[2]!UPDATETIME -> 10:48:53.900 | CI8: 100 | CJ8: 20240219
F9: 输出 | J9: =((K10-K8)/2)*M9*EXP($H$8*$H$12)/K9^2 -> 7.378068335e-06 | K9: =Extract_Non_numbers(AY9) -> 2100 | L9: =ABS(AX9-AZ9) -> 208.6 | M9: =IF(K9>$H$14,(AR9+AQ9)/2,(BF9+BG9)/2) -> 1.3 | N9: 20240219 | O9: 100 | P9: =[3]!UPDATETIME -> 10:48:55.400 | Q9: =[3]!INST_STATE -> 连续交易 | R9: HO | S9: CFFEX | T9: =[3]!PRESETTLEPRICE -> 215.6 | U9: =[3]!PRECLOSE -> 220.4 | V9: =[3]!SETTLEPRICE ->  | W9: =[3]!CLOSEPRICE ->  | X9: =[3]!LOWERLIMITPRICE -> 0.2 | Y9: =[3]!UPPERLIMITPRICE -> 446.8 | Z9: =[3]!LOW -> 209 | AA9: =[3]!HIGH -> 222.4 | AB9: =[3]!OPENPRICE -> 213.2 | AC9: =[3]!OPTION_RHO -> 1.176059865 | AD9: =[3]!OPTION_THETA -> -0.2543586265 | AE9: =[3]!OPTION_VEGA -> 0.2989411454 | AF9: =[3]!OPTION_GAMMA -> 0.0004885094807 | AG9: =[3]!OPTION_DELTA -> 0.9772235436 | AH9: =[3]!OPTION_MIDVOLATILITY -> 9.375009687 | AI9: =[3]!OPTION_ASKVOLATILITY -> 9.375009687 | AJ9: =[3]!OPTION_BIDVOLATILITY ->  | AK9: =[3]!OPTION_VOLATILITY -> 20.94727493 | AL9: =[3]!INTRINSICVALUE -> 209 | AM9: =[3]!TIMEVALUE -> 0.8 | AN9: =[3]!POSIVOL -> 119 | AO9: =[3]!TRADEVOLUME -> 34 | AP9: =[3]!ASKVOLUME1 -> 6 | AQ9: =[3]!ASKPRICE1 -> 208.4 | AR9: =[3]!BIDPRICE1 -> 206.4 | AS9: =[3]!BIDVOLUME1 -> 6 | AT9: =[3]!NETCHANGERATE -> -2.69% | AU9: =[3]!NETCHANGE -> -5.8 | AV9: =[3]!MTMPL2375314700 -> 0 | AW9: =[3]!NETVOLUME2375314700 -> 0 | AX9: =[3]!LASTPRICE -> 209.8 | AY9: 2100 | AZ9: =[4]!LASTPRICE -> 1.2 | BA9: =[4]!NETVOLUME2375314700 -> 0 | BB9: =[4]!MTMPL2375314700 -> 0 | BC9: =[4]!NETCHANGE -> -0.2 | BD9: =[4]!NETCHANGERATE -> -14.29% | BE9: =[4]!BIDVOLUME1 -> 24 | BF9: =[4]!BIDPRICE1 -> 1.2 | BG9: =[4]!ASKPRICE1 -> 1.4 | BH9: =[4]!ASKVOLUME1 -> 43 | BI9: =[4]!TRADEVOLUME -> 107 | BJ9: =[4]!POSIVOL -> 848 | BK9: =[4]!TIMEVALUE -> 1.2 | BL9: =[4]!INTRINSICVALUE -> 0 | BM9: =[4]!OPTION_VOLATILITY -> 20.87403274 | BN9: =[4]!OPTION_BIDVOLATILITY -> 20.87403274 | BO9: =[4]!OPTION_ASKVOLATILITY -> 21.45997022 | BP9: =[4]!OPTION_MIDVOLATILITY -> 21.16700148 | BQ9: =[4]!OPTION_DELTA -> -0.02834742394 | BR9: =[4]!OPTION_GAMMA -> 0.0005540290651 | BS9: =[4]!OPTION_VEGA -> 0.3593163832 | BT9: =[4]!OPTION_THETA -> -0.1774312114 | BU9: =[4]!OPTION_RHO -> -0.03838488438 | BV9: =[4]!OPENPRICE -> 1.6 | BW9: =[4]!HIGH -> 1.6 | BX9: =[4]!LOW -> 1.2 | BY9: =[4]!UPPERLIMITPRICE -> 232.6 | BZ9: =[4]!LOWERLIMITPRICE -> 0.2 | CA9: =[4]!CLOSEPRICE ->  | CB9: =[4]!SETTLEPRICE ->  | CC9: =[4]!PRECLOSE -> 1.4 | CD9: =[4]!PRESETTLEPRICE -> 1.4 | CE9: CFFEX | CF9: HO | CG9: =[4]!INST_STATE -> 连续交易 | CH9: =[4]!UPDATETIME -> 10:47:16.900 | CI9: 100 | CJ9: 20240219
F10: 近月合约到期日 | H10: =DATE(LEFT(N8,4),MID(N8,5,2),RIGHT(N8,2)) -> 2024-02-19 | J10: =((K11-K9)/2)*M10*EXP($H$8*$H$12)/K10^2 -> 7.205487913e-06 | K10: 2125 | L10: 187.6 | M10: 1.3 | N10: 20240219 | O10: 100 | P10: =[5]!UPDATETIME -> 10:48:53.400 | Q10: =[5]!INST_STATE -> 连续交易 | R10: HO | S10: CFFEX | T10: =[5]!PRESETTLEPRICE -> 190.8 | U10: =[5]!PRECLOSE -> 191 | V10: =[5]!SETTLEPRICE ->  | W10: =[5]!CLOSEPRICE ->  | X10: =[5]!LOWERLIMITPRICE -> 0.2 | Y10: =[5]!UPPERLIMITPRICE -> 422 | Z10: =[5]!LOW -> 188.6 | AA10: =[5]!HIGH -> 191.2 | AB10: =[5]!OPENPRICE -> 188.8 | AC10: =[5]!OPTION_RHO -> 1.16773859 | AD10: =[5]!OPTION_THETA -> -0.3359600336 | AE10: =[5]!OPTION_VEGA -> 0.4719683551 | AF10: =[5]!OPTION_GAMMA -> 0.0007709914055 | AG10: =[5]!OPTION_DELTA -> 0.9604930026 | AH10: =[5]!OPTION_MIDVOLATILITY ->  | AI10: =[5]!OPTION_ASKVOLATILITY ->  | AJ10: =[5]!OPTION_BIDVOLATILITY ->  | AK10: =[5]!OPTION_VOLATILITY -> 25.04883729 | AL10: =[5]!INTRINSICVALUE -> 184 | AM10: =[5]!TIMEVALUE -> 5 | AN10: =[5]!POSIVOL -> 63 | AO10: =[5]!TRADEVOLUME -> 33 | AP10: =[5]!ASKVOLUME1 -> 6 | AQ10: =[5]!ASKPRICE1 -> 183.6 | AR10: =[5]!BIDPRICE1 -> 182 | AS10: =[5]!BIDVOLUME1 -> 6 | AT10: =[5]!NETCHANGERATE -> -0.94% | AU10: =[5]!NETCHANGE -> -1.8 | AV10: =[5]!MTMPL2375314700 -> 0 | AW10: =[5]!NETVOLUME2375314700 -> 0 | AX10: =[5]!LASTPRICE -> 189 | AY10: 2125 | AZ10: =[6]!LASTPRICE -> 1.4 | BA10: =[6]!NETVOLUME2375314700 -> 0 | BB10: =[6]!MTMPL2375314700 -> 0 | BC10: =[6]!NETCHANGE -> -0.4 | BD10: =[6]!NETCHANGERATE -> -22.22% | BE10: =[6]!BIDVOLUME1 -> 60 | BF10: =[6]!BIDPRICE1 -> 1.2 | BG10: =[6]!ASKPRICE1 -> 1.4 | BH10: =[6]!ASKVOLUME1 -> 29 | BI10: =[6]!TRADEVOLUME -> 350 | BJ10: =[6]!POSIVOL -> 777 | BK10: =[6]!TIMEVALUE -> 1.4 | BL10: =[6]!INTRINSICVALUE -> 0 | BM10: =[6]!OPTION_VOLATILITY -> 19.1162203 | BN10: =[6]!OPTION_BIDVOLATILITY -> 18.603525 | BO10: =[6]!OPTION_ASKVOLATILITY -> 19.1162203 | BP10: =[6]!OPTION_MIDVOLATILITY -> 18.85987265 | BQ10: =[6]!OPTION_DELTA -> -0.03152482653 | BR10: =[6]!OPTION_GAMMA -> 0.0006794643216 | BS10: =[6]!OPTION_VEGA -> 0.3921941415 | BT10: =[6]!OPTION_THETA -> -0.172057189 | BU10: =[6]!OPTION_RHO -> -0.04258240733 | BV10: =[6]!OPENPRICE -> 2 | BW10: =[6]!HIGH -> 2.2 | BX10: =[6]!LOW -> 1.2 | BY10: =[6]!UPPERLIMITPRICE -> 233 | BZ10: =[6]!LOWERLIMITPRICE -> 0.2 | CA10: =[6]!CLOSEPRICE ->  | CB10: =[6]!SETTLEPRICE ->  | CC10: =[6]!PRECLOSE -> 1.8 | CD10: =[6]!PRESETTLEPRICE -> 1.8 | CE10: CFFEX | CF10: HO | CG10: =[6]!INST_STATE -> 连续交易 | CH10: =[6]!UPDATETIME -> 10:48:52.400 | CI10: 100 | CJ10: 20240219
A11: STEP 4 | F11: 远月合约到期日 | H11: =DATE(LEFT(N32,4),MID(N32,5,2),RIGHT(N32,2)) -> 2024-03-15 | J11: 1.137051892e-05 | K11: 2150 | L11: 157.4 | M11: 2.1 | N11: 20240219 | O11: 100 | P11: =[7]!UPDATETIME -> 10:48:53.400 | Q11: =[7]!INST_STATE -> 连续交易 | R11: HO | S11: CFFEX | T11: =[7]!PRESETTLEPRICE -> 166 | U11: =[7]!PRECLOSE -> 169.8 | V11: =[7]!SETTLEPRICE ->  | W11: =[7]!CLOSEPRICE ->  | X11: =[7]!LOWERLIMITPRICE -> 0.2 | Y11: =[7]!UPPERLIMITPRICE -> 397.2 | Z11: =[7]!LOW -> 159.4 | AA11: =[7]!HIGH -> 173.2 | AB11: =[7]!OPENPRICE -> 164.6 | AC11: =[7]!OPTION_RHO -> 1.214699626 | AD11: =[7]!OPTION_THETA -> -0.1872297621 | AE11: =[7]!OPTION_VEGA -> 0.2159274305 | AF11: =[7]!OPTION_GAMMA -> 0.000506943155 | AG11: =[7]!OPTION_DELTA -> 0.9844642366 | AH11: =[7]!OPTION_MIDVOLATILITY -> 13.91602516 | AI11: =[7]!OPTION_ASKVOLATILITY -> 13.91602516 | AJ11: =[7]!OPTION_BIDVOLATILITY ->  | AK11: =[7]!OPTION_VOLATILITY -> 14.64844701 | AL11: =[7]!INTRINSICVALUE -> 159 | AM11: =[7]!TIMEVALUE -> 0.6 | AN11: =[7]!POSIVOL -> 191 | AO11: =[7]!TRADEVOLUME -> 89 | AP11: =[7]!ASKVOLUME1 -> 6 | AQ11: =[7]!ASKPRICE1 -> 159.4 | AR11: =[7]!BIDPRICE1 -> 157.8 | AS11: =[7]!BIDVOLUME1 -> 6 | AT11: =[7]!NETCHANGERATE -> -3.86% | AU11: =[7]!NETCHANGE -> -6.4 | AV11: =[7]!MTMPL2375314700 -> 0 | AW11: =[7]!NETVOLUME2375314700 -> 0 | AX11: =[7]!LASTPRICE -> 159.6 | AY11: 2150 | AZ11: =[8]!LASTPRICE -> 2.2 | BA11: =[8]!NETVOLUME2375314700 -> 0 | BB11: =[8]!MTMPL2375314700 -> 0 | BC11: =[8]!NETCHANGE -> -0.4 | BD11: =[8]!NETCHANGERATE -> -15.38% | BE11: =[8]!BIDVOLUME1 -> 88 | BF11: =[8]!BIDPRICE1 -> 2 | BG11: =[8]!ASKPRICE1 -> 2.2 | BH11: =[8]!ASKVOLUME1 -> 52 | BI11: =[8]!TRADEVOLUME -> 229 | BJ11: =[8]!POSIVOL -> 1532 | BK11: =[8]!TIMEVALUE -> 2.2 | BL11: =[8]!INTRINSICVALUE -> 0 | BM11: =[8]!OPTION_VOLATILITY -> 18.45704063 | BN11: =[8]!OPTION_BIDVOLATILITY -> 18.09082971 | BO11: =[8]!OPTION_ASKVOLATILITY -> 18.45704063 | BP11: =[8]!OPTION_MIDVOLATILITY -> 18.27393517 | BQ11: =[8]!OPTION_DELTA -> -0.04935203752 | BR11: =[8]!OPTION_GAMMA -> 0.001009578228 | BS11: =[8]!OPTION_VEGA -> 0.5646838985 | BT11: =[8]!OPTION_THETA -> -0.23933722 | BU11: =[8]!OPTION_RHO -> -0.06670842897 | BV11: =[8]!OPENPRICE -> 2.4 | BW11: =[8]!HIGH -> 2.4 | BX11: =[8]!LOW -> 2 | BY11: =[8]!UPPERLIMITPRICE -> 233.8 | BZ11: =[8]!LOWERLIMITPRICE -> 0.2 | CA11: =[8]!CLOSEPRICE ->  | CB11: =[8]!SETTLEPRICE ->  | CC11: =[8]!PRECLOSE -> 2.6 | CD11: =[8]!PRESETTLEPRICE -> 2.6 | CE11: CFFEX | CF11: HO | CG11: =[8]!INST_STATE -> 连续交易 | CH11: =[8]!UPDATETIME -> 10:48:54.400 | CI11: 100 | CJ11: 20240219
F12: T1 | H12: =nt(H10) -> 0.05732305936 | J12: 1.798863894e-05 | K12: 2175 | L12: 132.6 | M12: 3.4 | N12: 20240219 | O12: 100 | P12: =[9]!UPDATETIME -> 10:48:57.400 | Q12: =[9]!INST_STATE -> 连续交易 | R12: HO | S12: CFFEX | T12: =[9]!PRESETTLEPRICE -> 142.4 | U12: =[9]!PRECLOSE -> 141.8 | V12: =[9]!SETTLEPRICE ->  | W12: =[9]!CLOSEPRICE ->  | X12: =[9]!LOWERLIMITPRICE -> 0.2 | Y12: =[9]!UPPERLIMITPRICE -> 373.6 | Z12: =[9]!LOW -> 136 | AA12: =[9]!HIGH -> 150 | AB12: =[9]!OPENPRICE -> 140.8 | AC12: =[9]!OPTION_RHO -> 1.219617067 | AD12: =[9]!OPTION_THETA -> -0.2049476396 | AE12: =[9]!OPTION_VEGA -> 0.2968966932 | AF12: =[9]!OPTION_GAMMA -> 0.0007721622974 | AG12: =[9]!OPTION_DELTA -> 0.9774140407 | AH12: =[9]!OPTION_MIDVOLATILITY -> 12.56104474 | AI12: =[9]!OPTION_ASKVOLATILITY -> 15.16114231 | AJ12: =[9]!OPTION_BIDVOLATILITY -> 9.960947168 | AK12: =[9]!OPTION_VOLATILITY -> 15.52735323 | AL12: =[9]!INTRINSICVALUE -> 134 | AM12: =[9]!TIMEVALUE -> 2 | AN12: =[9]!POSIVOL -> 495 | AO12: =[9]!TRADEVOLUME -> 156 | AP12: =[9]!ASKVOLUME1 -> 6 | AQ12: =[9]!ASKPRICE1 -> 135.8 | AR12: =[9]!BIDPRICE1 -> 134.2 | AS12: =[9]!BIDVOLUME1 -> 3 | AT12: =[9]!NETCHANGERATE -> -4.49% | AU12: =[9]!NETCHANGE -> -6.4 | AV12: =[9]!MTMPL2375314700 -> 0 | AW12: =[9]!NETVOLUME2375314700 -> 0 | AX12: =[9]!LASTPRICE -> 136 | AY12: 2175 | AZ12: =[10]!LASTPRICE -> 3.4 | BA12: =[10]!NETVOLUME2375314700 -> 0 | BB12: =[10]!MTMPL2375314700 -> 0 | BC12: =[10]!NETCHANGE -> -0.6 | BD12: =[10]!NETCHANGERATE -> -15.00% | BE12: =[10]!BIDVOLUME1 -> 36 | BF12: =[10]!BIDPRICE1 -> 3.2 | BG12: =[10]!ASKPRICE1 -> 3.6 | BH12: =[10]!ASKVOLUME1 -> 61 | BI12: =[10]!TRADEVOLUME -> 291 | BJ12: =[10]!POSIVOL -> 1513 | BK12: =[10]!TIMEVALUE -> 3.4 | BL12: =[10]!INTRINSICVALUE -> 0 | BM12: =[10]!OPTION_VOLATILITY -> 17.68799769 | BN12: =[10]!OPTION_BIDVOLATILITY -> 17.43165004 | BO12: =[10]!OPTION_ASKVOLATILITY -> 17.94434534 | BP12: =[10]!OPTION_MIDVOLATILITY -> 17.68799769 | BQ12: =[10]!OPTION_DELTA -> -0.0759329852 | BR12: =[10]!OPTION_GAMMA -> 0.001460172384 | BS12: =[10]!OPTION_VEGA -> 0.7905945368 | BT12: =[10]!OPTION_THETA -> -0.3231701948 | BU12: =[10]!OPTION_RHO -> -0.1027215413 | BV12: =[10]!OPENPRICE -> 4 | BW12: =[10]!HIGH -> 4 | BX12: =[10]!LOW -> 3 | BY12: =[10]!UPPERLIMITPRICE -> 235.2 | BZ12: =[10]!LOWERLIMITPRICE -> 0.2 | CA12: =[10]!CLOSEPRICE ->  | CB12: =[10]!SETTLEPRICE ->  | CC12: =[10]!PRECLOSE -> 4 | CD12: =[10]!PRESETTLEPRICE -> 4 | CE12: CFFEX | CF12: HO | CG12: =[10]!INST_STATE -> 连续交易 | CH12: =[10]!UPDATETIME -> 10:48:55.900 | CI12: 100 | CJ12: 20240219
F13: T2 | H13: =nt(H11) -> 0.1258143075 | J13: 2.999304384e-05 | K13: 2200 | L13: 108.4 | M13: 5.8 | N13: 20240219 | O13: 100 | P13: =[11]!UPDATETIME -> 10:48:55.900 | Q13: =[11]!INST_STATE -> 连续交易 | R13: HO | S13: CFFEX | T13: =[11]!PRESETTLEPRICE -> 120.6 | U13: =[11]!PRECLOSE -> 120.6 | V13: =[11]!SETTLEPRICE ->  | W13: =[11]!CLOSEPRICE ->  | X13: =[11]!LOWERLIMITPRICE -> 0.2 | Y13: =[11]!UPPERLIMITPRICE -> 351.8 | Z13: =[11]!LOW -> 113.2 | AA13: =[11]!HIGH -> 128 | AB13: =[11]!OPENPRICE -> 118.2 | AC13: =[11]!OPTION_RHO -> 1.150506357 | AD13: =[11]!OPTION_THETA -> -0.4129633005 | AE13: =[11]!OPTION_VEGA -> 0.8559733209 | AF13: =[11]!OPTION_GAMMA -> 0.001878276085 | AG13: =[11]!OPTION_DELTA -> 0.9156572257 | AH13: =[11]!OPTION_MIDVOLATILITY -> 14.88648411 | AI13: =[11]!OPTION_ASKVOLATILITY -> 15.7104587 | AJ13: =[11]!OPTION_BIDVOLATILITY -> 14.06250953 | AK13: =[11]!OPTION_VOLATILITY -> 16.73584929 | AL13: =[11]!INTRINSICVALUE -> 109 | AM13: =[11]!TIMEVALUE -> 5.2 | AN13: =[11]!POSIVOL -> 555 | AO13: =[11]!TRADEVOLUME -> 360 | AP13: =[11]!ASKVOLUME1 -> 8 | AQ13: =[11]!ASKPRICE1 -> 113.2 | AR13: =[11]!BIDPRICE1 -> 111.8 | AS13: =[11]!BIDVOLUME1 -> 2 | AT13: =[11]!NETCHANGERATE -> -5.31% | AU13: =[11]!NETCHANGE -> -6.4 | AV13: =[11]!MTMPL2375314700 -> 0 | AW13: =[11]!NETVOLUME2375314700 -> 0 | AX13: =[11]!LASTPRICE -> 114.2 | AY13: 2200 | AZ13: =[12]!LASTPRICE -> 5.8 | BA13: =[12]!NETVOLUME2375314700 -> 0 | BB13: =[12]!MTMPL2375314700 -> 0 | BC13: =[12]!NETCHANGE -> 0 | BD13: =[12]!NETCHANGERATE -> 0.00% | BE13: =[12]!BIDVOLUME1 -> 69 | BF13: =[12]!BIDPRICE1 -> 5.6 | BG13: =[12]!ASKPRICE1 -> 6 | BH13: =[12]!ASKVOLUME1 -> 44 | BI13: =[12]!TRADEVOLUME -> 422 | BJ13: =[12]!POSIVOL -> 1662 | BK13: =[12]!TIMEVALUE -> 5.8 | BL13: =[12]!INTRINSICVALUE -> 0 | BM13: =[12]!OPTION_VOLATILITY -> 17.50489223 | BN13: =[12]!OPTION_BIDVOLATILITY -> 17.32178677 | BO13: =[12]!OPTION_ASKVOLATILITY -> 17.68799769 | BP13: =[12]!OPTION_MIDVOLATILITY -> 17.50489223 | BQ13: =[12]!OPTION_DELTA -> -0.119725399 | BR13: =[12]!OPTION_GAMMA -> 0.002062066463 | BS13: =[12]!OPTION_VEGA -> 1.105021586 | BT13: =[12]!OPTION_THETA -> -0.4451035629 | BU13: =[12]!OPTION_RHO -> -0.1622335361 | BV13: =[12]!OPENPRICE -> 6.2 | BW13: =[12]!HIGH -> 6.6 | BX13: =[12]!LOW -> 4.8 | BY13: =[12]!UPPERLIMITPRICE -> 237 | BZ13: =[12]!LOWERLIMITPRICE -> 0.2 | CA13: =[12]!CLOSEPRICE ->  | CB13: =[12]!SETTLEPRICE ->  | CC13: =[12]!PRECLOSE -> 5.8 | CD13: =[12]!PRESETTLEPRICE -> 5.8 | CE13: CFFEX | CF13: HO | CG13: =[12]!INST_STATE -> 连续交易 | CH13: =[12]!UPDATETIME -> 10:48:55.900 | CI13: 100 | CJ13: 20240219
F14: 当前近月合约平价期权执行价 | H14: =INDEX(K8:K28,MATCH(MIN(L8:L28),L8:L28,0)) -> 2300 | J14: 4.954547033e-05 | K14: 2225 | L14: 90.6 | M14: 9.8 | N14: 20240219 | O14: 100 | P14: =[13]!UPDATETIME -> 10:48:55.400 | Q14: =[13]!INST_STATE -> 连续交易 | R14: HO | S14: CFFEX | T14: =[13]!PRESETTLEPRICE -> 99.4 | U14: =[13]!PRECLOSE -> 99.4 | V14: =[13]!SETTLEPRICE ->  | W14: =[13]!CLOSEPRICE ->  | X14: =[13]!LOWERLIMITPRICE -> 0.2 | Y14: =[13]!UPPERLIMITPRICE -> 330.6 | Z14: =[13]!LOW -> 91 | AA14: =[13]!HIGH -> 105 | AB14: =[13]!OPENPRICE -> 97.4 | AC14: =[13]!OPTION_RHO -> 1.066331445 | AD14: =[13]!OPTION_THETA -> -0.5968549587 | AE14: =[13]!OPTION_VEGA -> 1.328769224 | AF14: =[13]!OPTION_GAMMA -> 0.002772991379 | AG14: =[13]!OPTION_DELTA -> 0.8431310474 | AH14: =[13]!OPTION_MIDVOLATILITY -> 15.65552706 | AI14: =[13]!OPTION_ASKVOLATILITY -> 16.04004853 | AJ14: =[13]!OPTION_BIDVOLATILITY -> 15.27100558 | AK14: =[13]!OPTION_VOLATILITY -> 21.51490186 | AL14: =[13]!INTRINSICVALUE -> 84 | AM14: =[13]!TIMEVALUE -> 16.2 | AN14: =[13]!POSIVOL -> 802 | AO14: =[13]!TRADEVOLUME -> 324 | AP14: =[13]!ASKVOLUME1 -> 2 | AQ14: =[13]!ASKPRICE1 -> 91.8 | AR14: =[13]!BIDPRICE1 -> 90.8 | AS14: =[13]!BIDVOLUME1 -> 2 | AT14: =[13]!NETCHANGERATE -> +0.80% | AU14: =[13]!NETCHANGE -> 0.8 | AV14: =[13]!MTMPL2375314700 -> 0 | AW14: =[13]!NETVOLUME2375314700 -> 0 | AX14: =[13]!LASTPRICE -> 100.2 | AY14: 2225 | AZ14: =[14]!LASTPRICE -> 9.6 | BA14: =[14]!NETVOLUME2375314700 -> 0 | BB14: =[14]!MTMPL2375314700 -> 0 | BC14: =[14]!NETCHANGE -> 0.4 | BD14: =[14]!NETCHANGERATE -> +4.35% | BE14: =[14]!BIDVOLUME1 -> 33 | BF14: =[14]!BIDPRICE1 -> 9.6 | BG14: =[14]!ASKPRICE1 -> 10 | BH14: =[14]!ASKVOLUME1 -> 71 | BI14: =[14]!TRADEVOLUME -> 653 | BJ14: =[14]!POSIVOL -> 1362 | BK14: =[14]!TIMEVALUE -> 9.6 | BL14: =[14]!INTRINSICVALUE -> 0 | BM14: =[14]!OPTION_VOLATILITY -> 17.35840786 | BN14: =[14]!OPTION_BIDVOLATILITY -> 17.35840786 | BO14: =[14]!OPTION_ASKVOLATILITY -> 17.63306605 | BP14: =[14]!OPTION_MIDVOLATILITY -> 17.49573696 | BQ14: =[14]!OPTION_DELTA -> -0.1822920234 | BR14: =[14]!OPTION_GAMMA -> 0.002732362696 | BS14: =[14]!OPTION_VEGA -> 1.4633277 | BT14: =[14]!OPTION_THETA -> -0.5859949603 | BU14: =[14]!OPTION_RHO -> -0.2475520484 | BV14: =[14]!OPENPRICE -> 9.8 | BW14: =[14]!HIGH -> 10.4 | BX14: =[14]!LOW -> 7.8 | BY14: =[14]!UPPERLIMITPRICE -> 240.4 | BZ14: =[14]!LOWERLIMITPRICE -> 0.2 | CA14: =[14]!CLOSEPRICE ->  | CB14: =[14]!SETTLEPRICE ->  | CC14: =[14]!PRECLOSE -> 9.2 | CD14: =[14]!PRESETTLEPRICE -> 9.2 | CE14: CFFEX | CF14: HO | CG14: =[14]!INST_STATE -> 连续交易 | CH14: =[14]!UPDATETIME -> 10:48:56.400 | CI14: 100 | CJ14: 20240219
A15: STEP 5 | F15: 当前远月合约平价期权执行价 | H15: =INDEX(K32:K52,MATCH(MIN(L32:L52),L32:L52,0)) -> 2325 | J15: 7.613662038e-05 | K15: 2250 | L15: 58.6 | M15: 15.4 | N15: 20240219 | O15: 100 | P15: =[15]!UPDATETIME -> 10:48:56.400 | Q15: =[15]!INST_STATE -> 连续交易 | R15: HO | S15: CFFEX | T15: =[15]!PRESETTLEPRICE -> 77.6 | U15: =[15]!PRECLOSE -> 77.6 | V15: =[15]!SETTLEPRICE ->  | W15: =[15]!CLOSEPRICE ->  | X15: =[15]!LOWERLIMITPRICE -> 0.2 | Y15: =[15]!UPPERLIMITPRICE -> 308.8 | Z15: =[15]!LOW -> 67 | AA15: =[15]!HIGH -> 86 | AB15: =[15]!OPENPRICE -> 72.4 | AC15: =[15]!OPTION_RHO -> 0.965230515 | AD15: =[15]!OPTION_THETA -> -0.7464725395 | AE15: =[15]!OPTION_VEGA -> 1.725712803 | AF15: =[15]!OPTION_GAMMA -> 0.003538354805 | AG15: =[15]!OPTION_DELTA -> 0.7585618655 | AH15: =[15]!OPTION_MIDVOLATILITY -> 15.93018525 | AI15: =[15]!OPTION_ASKVOLATILITY -> 16.27808563 | AJ15: =[15]!OPTION_BIDVOLATILITY -> 15.58228487 | AK15: =[15]!OPTION_VOLATILITY -> 16.95557584 | AL15: =[15]!INTRINSICVALUE -> 59 | AM15: =[15]!TIMEVALUE -> 15 | AN15: =[15]!POSIVOL -> 1674 | AO15: =[15]!TRADEVOLUME -> 1005 | AP15: =[15]!ASKVOLUME1 -> 8 | AQ15: =[15]!ASKPRICE1 -> 72.8 | AR15: =[15]!BIDPRICE1 -> 71.6 | AS15: =[15]!BIDVOLUME1 -> 6 | AT15: =[15]!NETCHANGERATE -> -4.64% | AU15: =[15]!NETCHANGE -> -3.6 | AV15: =[15]!MTMPL2375314700 -> 0 | AW15: =[15]!NETVOLUME2375314700 -> 0 | AX15: =[15]!LASTPRICE -> 74 | AY15: 2250 | AZ15: =[16]!LASTPRICE -> 15.4 | BA15: =[16]!NETVOLUME2375314700 -> 0 | BB15: =[16]!MTMPL2375314700 -> 0 | BC15: =[16]!NETCHANGE -> 1.4 | BD15: =[16]!NETCHANGERATE -> +10.00% | BE15: =[16]!BIDVOLUME1 -> 39 | BF15: =[16]!BIDPRICE1 -> 15.2 | BG15: =[16]!ASKPRICE1 -> 15.6 | BH15: =[16]!ASKVOLUME1 -> 25 | BI15: =[16]!TRADEVOLUME -> 1145 | BJ15: =[16]!POSIVOL -> 1896 | BK15: =[16]!TIMEVALUE -> 15.4 | BL15: =[16]!INTRINSICVALUE -> 0 | BM15: =[16]!OPTION_VOLATILITY -> 17.4133395 | BN15: =[16]!OPTION_BIDVOLATILITY -> 17.28516567 | BO15: =[16]!OPTION_ASKVOLATILITY -> 17.52320278 | BP15: =[16]!OPTION_MIDVOLATILITY -> 17.40418422 | BQ15: =[16]!OPTION_DELTA -> -0.2592554008 | BR15: =[16]!OPTION_GAMMA -> 0.003363290985 | BS15: =[16]!OPTION_VEGA -> 1.79210904 | BT15: =[16]!OPTION_THETA -> -0.7090102736 | BU15: =[16]!OPTION_RHO -> -0.3529411017 | BV15: =[16]!OPENPRICE -> 14.4 | BW15: =[16]!HIGH -> 16 | BX15: =[16]!LOW -> 11.8 | BY15: =[16]!UPPERLIMITPRICE -> 245.2 | BZ15: =[16]!LOWERLIMITPRICE -> 0.2 | CA15: =[16]!CLOSEPRICE ->  | CB15: =[16]!SETTLEPRICE ->  | CC15: =[16]!PRECLOSE -> 14 | CD15: =[16]!PRESETTLEPRICE -> 14 | CE15: CFFEX | CF15: HO | CG15: =[16]!INST_STATE -> 连续交易 | CH15: =[16]!UPDATETIME -> 10:48:56.900 | CI15: 100 | CJ15: 20240219
F16: 近月合约波动率 | H16: =sigma2(H12,H8,1,H14) -> 0.03288857909 | J16: 0.000114126661 | K16: 2275 | L16: 33.4 | M16: 23.6 | N16: 20240219 | O16: 100 | P16: =[17]!UPDATETIME -> 10:48:56.400 | Q16: =[17]!INST_STATE -> 连续交易 | R16: HO | S16: CFFEX | T16: =[17]!PRESETTLEPRICE -> 61.6 | U16: =[17]!PRECLOSE -> 61.6 | V16: =[17]!SETTLEPRICE ->  | W16: =[17]!CLOSEPRICE ->  | X16: =[17]!LOWERLIMITPRICE -> 0.2 | Y16: =[17]!UPPERLIMITPRICE -> 292.8 | Z16: =[17]!LOW -> 50.6 | AA16: =[17]!HIGH -> 67.2 | AB16: =[17]!OPENPRICE -> 59.6 | AC16: =[17]!OPTION_RHO -> 0.8410341025 | AD16: =[17]!OPTION_THETA -> -0.8665763687 | AE16: =[17]!OPTION_VEGA -> 2.032665307 | AF16: =[17]!OPTION_GAMMA -> 0.004085187333 | AG16: =[17]!OPTION_DELTA -> 0.6577172049 | AH16: =[17]!OPTION_MIDVOLATILITY -> 16.25061981 | AI16: =[17]!OPTION_ASKVOLATILITY -> 16.49781218 | AJ16: =[17]!OPTION_BIDVOLATILITY -> 16.00342744 | AK16: =[17]!OPTION_VOLATILITY -> 16.9006442 | AL16: =[17]!INTRINSICVALUE -> 34 | AM16: =[17]!TIMEVALUE -> 22.8 | AN16: =[17]!POSIVOL -> 1227 | AO16: =[17]!TRADEVOLUME -> 833 | AP16: =[17]!ASKVOLUME1 -> 14 | AQ16: =[17]!ASKPRICE1 -> 56 | AR16: =[17]!BIDPRICE1 -> 55 | AS16: =[17]!BIDVOLUME1 -> 14 | AT16: =[17]!NETCHANGERATE -> -7.79% | AU16: =[17]!NETCHANGE -> -4.8 | AV16: =[17]!MTMPL2375314700 -> 0 | AW16: =[17]!NETVOLUME2375314700 -> 0 | AX16: =[17]!LASTPRICE -> 56.8 | AY16: 2275 | AZ16: =[18]!LASTPRICE -> 23.4 | BA16: =[18]!NETVOLUME2375314700 -> 0 | BB16: =[18]!MTMPL2375314700 -> 0 | BC16: =[18]!NETCHANGE -> 2.6 | BD16: =[18]!NETCHANGERATE -> +12.50% | BE16: =[18]!BIDVOLUME1 -> 2 | BF16: =[18]!BIDPRICE1 -> 23.4 | BG16: =[18]!ASKPRICE1 -> 23.8 | BH16: =[18]!ASKVOLUME1 -> 6 | BI16: =[18]!TRADEVOLUME -> 1316 | BJ16: =[18]!POSIVOL -> 1312 | BK16: =[18]!TIMEVALUE -> 23.4 | BL16: =[18]!INTRINSICVALUE -> 0 | BM16: =[18]!OPTION_VOLATILITY -> 17.43165004 | BN16: =[18]!OPTION_BIDVOLATILITY -> 17.43165004 | BO16: =[18]!OPTION_ASKVOLATILITY -> 17.63306605 | BP16: =[18]!OPTION_MIDVOLATILITY -> 17.53235805 | BQ16: =[18]!OPTION_DELTA -> -0.3521568555 | BR16: =[18]!OPTION_GAMMA -> 0.003826515776 | BS16: =[18]!OPTION_VEGA -> 2.054129444 | BT16: =[18]!OPTION_THETA -> -0.8116624667 | BU16: =[18]!OPTION_RHO -> -0.4809773255 | BV16: =[18]!OPENPRICE -> 21.8 | BW16: =[18]!HIGH -> 24 | BX16: =[18]!LOW -> 18.6 | BY16: =[18]!UPPERLIMITPRICE -> 252 | BZ16: =[18]!LOWERLIMITPRICE -> 0.2 | CA16: =[18]!CLOSEPRICE ->  | CB16: =[18]!SETTLEPRICE ->  | CC16: =[18]!PRECLOSE -> 20.8 | CD16: =[18]!PRESETTLEPRICE -> 20.8 | CE16: CFFEX | CF16: HO | CG16: =[18]!INST_STATE -> 连续交易 | CH16: =[18]!UPDATETIME -> 10:48:56.900 | CI16: 100 | CJ16: 20240219
F17: 远月合约波动率 | H17: =sigma2(H13,H8,2,H15) -> 0.0396179808 | J17: 0.0001797901253 | K17: 2300 | L17: 8.4 | M17: =(AR17+ AQ17) / 4 + (BG17+ BF17) / 4 -> 38 | N17: 20240219 | O17: 100 | P17: =[19]!UPDATETIME -> 10:48:55.900 | Q17: =[19]!INST_STATE -> 连续交易 | R17: HO | S17: CFFEX | T17: =[19]!PRESETTLEPRICE -> 46 | U17: =[19]!PRECLOSE -> 46 | V17: =[19]!SETTLEPRICE ->  | W17: =[19]!CLOSEPRICE ->  | X17: =[19]!LOWERLIMITPRICE -> 0.2 | Y17: =[19]!UPPERLIMITPRICE -> 277.2 | Z17: =[19]!LOW -> 41.4 | AA17: =[19]!HIGH -> 51.8 | AB17: =[19]!OPENPRICE -> 45.6 | AC17: =[19]!OPTION_RHO -> 0.7071480044 | AD17: =[19]!OPTION_THETA -> -0.9304177509 | AE17: =[19]!OPTION_VEGA -> 2.189906032 | AF17: =[19]!OPTION_GAMMA -> 0.004319749567 | AG17: =[19]!OPTION_DELTA -> 0.550749414 | AH17: =[19]!OPTION_MIDVOLATILITY -> 16.55274382 | AI17: =[19]!OPTION_ASKVOLATILITY -> 16.64429655 | AJ17: =[19]!OPTION_BIDVOLATILITY -> 16.46119109 | AK17: =[19]!OPTION_VOLATILITY -> 16.82740202 | AL17: =[19]!INTRINSICVALUE -> 9 | AM17: =[19]!TIMEVALUE -> 33.2 | AN17: =[19]!POSIVOL -> 3442 | AO17: =[19]!TRADEVOLUME -> 3348 | AP17: =[19]!ASKVOLUME1 -> 5 | AQ17: =[19]!ASKPRICE1 -> 41.8 | AR17: =[19]!BIDPRICE1 -> 41.4 | AS17: =[19]!BIDVOLUME1 -> 1 | AT17: =[19]!NETCHANGERATE -> -8.26% | AU17: =[19]!NETCHANGE -> -3.8 | AV17: =[19]!MTMPL2375314700 -> 0 | AW17: =[19]!NETVOLUME2375314700 -> 0 | AX17: =[19]!LASTPRICE -> 42.2 | AY17: 2300 | AZ17: =[20]!LASTPRICE -> 33.8 | BA17: =[20]!NETVOLUME2375314700 -> 0 | BB17: =[20]!MTMPL2375314700 -> 0 | BC17: =[20]!NETCHANGE -> 2.8 | BD17: =[20]!NETCHANGERATE -> +9.03% | BE17: =[20]!BIDVOLUME1 -> 21 | BF17: =[20]!BIDPRICE1 -> 34.2 | BG17: =[20]!ASKPRICE1 -> 34.6 | BH17: =[20]!ASKVOLUME1 -> 7 | BI17: =[20]!TRADEVOLUME -> 1601 | BJ17: =[20]!POSIVOL -> 1005 | BK17: =[20]!TIMEVALUE -> 33.8 | BL17: =[20]!INTRINSICVALUE -> 0 | BM17: =[20]!OPTION_VOLATILITY -> 17.48658168 | BN17: =[20]!OPTION_BIDVOLATILITY -> 17.66968715 | BO17: =[20]!OPTION_ASKVOLATILITY -> 17.85279261 | BP17: =[20]!OPTION_MIDVOLATILITY -> 17.76123988 | BQ17: =[20]!OPTION_DELTA -> -0.4515777746 | BR17: =[20]!OPTION_GAMMA -> 0.004028779027 | BS17: =[20]!OPTION_VEGA -> 2.191510943 | BT17: =[20]!OPTION_THETA -> -0.867786442 | BU17: =[20]!OPTION_RHO -> -0.619230254 | BV17: =[20]!OPENPRICE -> 32 | BW17: =[20]!HIGH -> 35.8 | BX17: =[20]!LOW -> 27.2 | BY17: =[20]!UPPERLIMITPRICE -> 262.2 | BZ17: =[20]!LOWERLIMITPRICE -> 0.2 | CA17: =[20]!CLOSEPRICE ->  | CB17: =[20]!SETTLEPRICE ->  | CC17: =[20]!PRECLOSE -> 31 | CD17: =[20]!PRESETTLEPRICE -> 31 | CE17: CFFEX | CF17: HO | CG17: =[20]!INST_STATE -> 连续交易 | CH17: =[20]!UPDATETIME -> 10:48:56.400 | CI17: 100 | CJ17: 20240219
F18: F1 | H18: =H14+EXP(H8*H12)*INDEX(L8:L28,MATCH(H14,K8:K28)) -> 2308.409636 | J18: 0.0001398295432 | K18: 2325 | L18: 17.8 | M18: 30.2 | N18: 20240219 | O18: 100 | P18: =[21]!UPDATETIME -> 10:48:56.400 | Q18: =[21]!INST_STATE -> 连续交易 | R18: HO | S18: CFFEX | T18: =[21]!PRESETTLEPRICE -> 33.2 | U18: =[21]!PRECLOSE -> 33.2 | V18: =[21]!SETTLEPRICE ->  | W18: =[21]!CLOSEPRICE ->  | X18: =[21]!LOWERLIMITPRICE -> 0.2 | Y18: =[21]!UPPERLIMITPRICE -> 264.4 | Z18: =[21]!LOW -> 29.4 | AA18: =[21]!HIGH -> 38.6 | AB18: =[21]!OPENPRICE -> 33 | AC18: =[21]!OPTION_RHO -> 0.5705818118 | AD18: =[21]!OPTION_THETA -> -0.9316719387 | AE18: =[21]!OPTION_VEGA -> 2.18500022 | AF18: =[21]!OPTION_GAMMA -> 0.004231249912 | AG18: =[21]!OPTION_DELTA -> 0.4429613415 | AH18: =[21]!OPTION_MIDVOLATILITY -> 16.86402311 | AI18: =[21]!OPTION_ASKVOLATILITY -> 16.95557584 | AJ18: =[21]!OPTION_BIDVOLATILITY -> 16.77247038 | AK18: =[21]!OPTION_VOLATILITY -> 16.86402311 | AL18: =[21]!INTRINSICVALUE -> 0 | AM18: =[21]!TIMEVALUE -> 30.2 | AN18: =[21]!POSIVOL -> 1728 | AO18: =[21]!TRADEVOLUME -> 2235 | AP18: =[21]!ASKVOLUME1 -> 2 | AQ18: =[21]!ASKPRICE1 -> 30.4 | AR18: =[21]!BIDPRICE1 -> 30 | AS18: =[21]!BIDVOLUME1 -> 62 | AT18: =[21]!NETCHANGERATE -> -9.04% | AU18: =[21]!NETCHANGE -> -3 | AV18: =[21]!MTMPL2375314700 -> 0 | AW18: =[21]!NETVOLUME2375314700 -> 0 | AX18: =[21]!LASTPRICE -> 30.2 | AY18: 2325 | AZ18: =[22]!LASTPRICE -> 48 | BA18: =[22]!NETVOLUME2375314700 -> 0 | BB18: =[22]!MTMPL2375314700 -> 0 | BC18: =[22]!NETCHANGE -> 3.4 | BD18: =[22]!NETCHANGERATE -> +7.62% | BE18: =[22]!BIDVOLUME1 -> 1 | BF18: =[22]!BIDPRICE1 -> 48 | BG18: =[22]!ASKPRICE1 -> 48.4 | BH18: =[22]!ASKVOLUME1 -> 5 | BI18: =[22]!TRADEVOLUME -> 1178 | BJ18: =[22]!POSIVOL -> 564 | BK18: =[22]!TIMEVALUE -> 32 | BL18: =[22]!INTRINSICVALUE -> 16 | BM18: =[22]!OPTION_VOLATILITY -> 17.99927698 | BN18: =[22]!OPTION_BIDVOLATILITY -> 17.99927698 | BO18: =[22]!OPTION_ASKVOLATILITY -> 18.18238244 | BP18: =[22]!OPTION_MIDVOLATILITY -> 18.09082971 | BQ18: =[22]!OPTION_DELTA -> -0.5520702381 | BR18: =[22]!OPTION_GAMMA -> 0.003951121284 | BS18: =[22]!OPTION_VEGA -> 2.188771706 | BT18: =[22]!OPTION_THETA -> -0.8703499069 | BU18: =[22]!OPTION_RHO -> -0.7605000347 | BV18: =[22]!OPENPRICE -> 44.6 | BW18: =[22]!HIGH -> 53.4 | BX18: =[22]!LOW -> 39.2 | BY18: =[22]!UPPERLIMITPRICE -> 275.8 | BZ18: =[22]!LOWERLIMITPRICE -> 0.2 | CA18: =[22]!CLOSEPRICE ->  | CB18: =[22]!SETTLEPRICE ->  | CC18: =[22]!PRECLOSE -> 45.6 | CD18: =[22]!PRESETTLEPRICE -> 44.6 | CE18: CFFEX | CF18: HO | CG18: =[22]!INST_STATE -> 连续交易 | CH18: =[22]!UPDATETIME -> 10:48:56.400 | CI18: 100 | CJ18: 20240219
A19: STEP 5 | F19: F2 | H19: =H14+EXP(H8*H12)*INDEX(L32:L52,MATCH(H14,K32:K52)) -> 2317.620189 | J19: 9.789396905e-05 | K19: 2350 | L19: 41.2 | M19: 21.6 | N19: 20240219 | O19: 100 | P19: =[23]!UPDATETIME -> 10:48:56.400 | Q19: =[23]!INST_STATE -> 连续交易 | R19: HO | S19: CFFEX | T19: =[23]!PRESETTLEPRICE -> 24 | U19: =[23]!PRECLOSE -> 24 | V19: =[23]!SETTLEPRICE ->  | W19: =[23]!CLOSEPRICE ->  | X19: =[23]!LOWERLIMITPRICE -> 0.2 | Y19: =[23]!UPPERLIMITPRICE -> 255.2 | Z19: =[23]!LOW -> 21 | AA19: =[23]!HIGH -> 28 | AB19: =[23]!OPENPRICE -> 22.8 | AC19: =[23]!OPTION_RHO -> 0.4460986823 | AD19: =[23]!OPTION_THETA -> -0.8806344007 | AE19: =[23]!OPTION_VEGA -> 2.03979965 | AF19: =[23]!OPTION_GAMMA -> 0.003859961581 | AG19: =[23]!OPTION_DELTA -> 0.3454508408 | AH19: =[23]!OPTION_MIDVOLATILITY -> 17.25769985 | AI19: =[23]!OPTION_ASKVOLATILITY -> 17.35840786 | AJ19: =[23]!OPTION_BIDVOLATILITY -> 17.15699185 | AK19: =[23]!OPTION_VOLATILITY -> 17.26685513 | AL19: =[23]!INTRINSICVALUE -> 0 | AM19: =[23]!TIMEVALUE -> 21.6 | AN19: =[23]!POSIVOL -> 2040 | AO19: =[23]!TRADEVOLUME -> 2062 | AP19: =[23]!ASKVOLUME1 -> 3 | AQ19: =[23]!ASKPRICE1 -> 21.8 | AR19: =[23]!BIDPRICE1 -> 21.4 | AS19: =[23]!BIDVOLUME1 -> 6 | AT19: =[23]!NETCHANGERATE -> -10.00% | AU19: =[23]!NETCHANGE -> -2.4 | AV19: =[23]!MTMPL2375314700 -> 0 | AW19: =[23]!NETVOLUME2375314700 -> 0 | AX19: =[23]!LASTPRICE -> 21.6 | AY19: 2350 | AZ19: =[24]!LASTPRICE -> 62.8 | BA19: =[24]!NETVOLUME2375314700 -> 0 | BB19: =[24]!MTMPL2375314700 -> 0 | BC19: =[24]!NETCHANGE -> 2.6 | BD19: =[24]!NETCHANGERATE -> +4.32% | BE19: =[24]!BIDVOLUME1 -> 3 | BF19: =[24]!BIDPRICE1 -> 64.2 | BG19: =[24]!ASKPRICE1 -> 65 | BH19: =[24]!ASKVOLUME1 -> 3 | BI19: =[24]!TRADEVOLUME -> 206 | BJ19: =[24]!POSIVOL -> 296 | BK19: =[24]!TIMEVALUE -> 21.8 | BL19: =[24]!INTRINSICVALUE -> 41 | BM19: =[24]!OPTION_VOLATILITY -> 17.70630824 | BN19: =[24]!OPTION_BIDVOLATILITY -> 18.38379845 | BO19: =[24]!OPTION_ASKVOLATILITY -> 18.76831992 | BP19: =[24]!OPTION_MIDVOLATILITY -> 18.57605919 | BQ19: =[24]!OPTION_DELTA -> -0.642952289 | BR19: =[24]!OPTION_GAMMA -> 0.003629109075 | BS19: =[24]!OPTION_VEGA -> 2.064311475 | BT19: =[24]!OPTION_THETA -> -0.8282026383 | BU19: =[24]!OPTION_RHO -> -0.8905653429 | BV19: =[24]!OPENPRICE -> 61.2 | BW19: =[24]!HIGH -> 64.6 | BX19: =[24]!LOW -> 53.8 | BY19: =[24]!UPPERLIMITPRICE -> 291.4 | BZ19: =[24]!LOWERLIMITPRICE -> 0.2 | CA19: =[24]!CLOSEPRICE ->  | CB19: =[24]!SETTLEPRICE ->  | CC19: =[24]!PRECLOSE -> 60.2 | CD19: =[24]!PRESETTLEPRICE -> 60.2 | CE19: CFFEX | CF19: HO | CG19: =[24]!INST_STATE -> 连续交易 | CH19: =[24]!UPDATETIME -> 10:48:54.900 | CI19: 100 | CJ19: 20240219
J20: 6.744570062e-05 | K20: 2375 | L20: 64.2 | M20: 15.2 | N20: 20240219 | O20: 100 | P20: =[25]!UPDATETIME -> 10:48:56.400 | Q20: =[25]!INST_STATE -> 连续交易 | R20: HO | S20: CFFEX | T20: =[25]!PRESETTLEPRICE -> 17.4 | U20: =[25]!PRECLOSE -> 17.4 | V20: =[25]!SETTLEPRICE ->  | W20: =[25]!CLOSEPRICE ->  | X20: =[25]!LOWERLIMITPRICE -> 0.2 | Y20: =[25]!UPPERLIMITPRICE -> 248.6 | Z20: =[25]!LOW -> 15.2 | AA20: =[25]!HIGH -> 19.8 | AB20: =[25]!OPENPRICE -> 17.4 | AC20: =[25]!OPTION_RHO -> 0.3390712077 | AD20: =[25]!OPTION_THETA -> -0.7904714737 | AE20: =[25]!OPTION_VEGA -> 1.802155116 | AF20: =[25]!OPTION_GAMMA -> 0.003330747339 | AG20: =[25]!OPTION_DELTA -> 0.2620423064 | AH20: =[25]!OPTION_MIDVOLATILITY -> 17.66968715 | AI20: =[25]!OPTION_ASKVOLATILITY -> 17.77955042 | AJ20: =[25]!OPTION_BIDVOLATILITY -> 17.55982387 | AK20: =[25]!OPTION_VOLATILITY -> 17.66968715 | AL20: =[25]!INTRINSICVALUE -> 0 | AM20: =[25]!TIMEVALUE -> 15.2 | AN20: =[25]!POSIVOL -> 951 | AO20: =[25]!TRADEVOLUME -> 406 | AP20: =[25]!ASKVOLUME1 -> 9 | AQ20: =[25]!ASKPRICE1 -> 15.4 | AR20: =[25]!BIDPRICE1 -> 15 | AS20: =[25]!BIDVOLUME1 -> 16 | AT20: =[25]!NETCHANGERATE -> -12.64% | AU20: =[25]!NETCHANGE -> -2.2 | AV20: =[25]!MTMPL2375314700 -> 0 | AW20: =[25]!NETVOLUME2375314700 -> 0 | AX20: =[25]!LASTPRICE -> 15.2 | AY20: 2375 | AZ20: =[26]!LASTPRICE -> 79.4 | BA20: =[26]!NETVOLUME2375314700 -> 0 | BB20: =[26]!MTMPL2375314700 -> 0 | BC20: =[26]!NETCHANGE -> 2.2 | BD20: =[26]!NETCHANGERATE -> +2.85% | BE20: =[26]!BIDVOLUME1 -> 6 | BF20: =[26]!BIDPRICE1 -> 82.6 | BG20: =[26]!ASKPRICE1 -> 83.8 | BH20: =[26]!ASKVOLUME1 -> 3 | BI20: =[26]!TRADEVOLUME -> 48 | BJ20: =[26]!POSIVOL -> 216 | BK20: =[26]!TIMEVALUE -> 13.4 | BL20: =[26]!INTRINSICVALUE -> 66 | BM20: =[26]!OPTION_VOLATILITY -> 17.06543912 | BN20: =[26]!OPTION_BIDVOLATILITY -> 18.84156211 | BO20: =[26]!OPTION_ASKVOLATILITY -> 19.48243123 | BP20: =[26]!OPTION_MIDVOLATILITY -> 19.16199667 | BQ20: =[26]!OPTION_DELTA -> -0.7203925922 | BR20: =[26]!OPTION_GAMMA -> 0.00317246657 | BS20: =[26]!OPTION_VEGA -> 1.861484541 | BT20: =[26]!OPTION_THETA -> -0.7536557321 | BU20: =[26]!OPTION_RHO -> -1.004054966 | BV20: =[26]!OPENPRICE -> 79 | BW20: =[26]!HIGH -> 79.4 | BX20: =[26]!LOW -> 73.4 | BY20: =[26]!UPPERLIMITPRICE -> 308.4 | BZ20: =[26]!LOWERLIMITPRICE -> 0.2 | CA20: =[26]!CLOSEPRICE ->  | CB20: =[26]!SETTLEPRICE ->  | CC20: =[26]!PRECLOSE -> 77.2 | CD20: =[26]!PRESETTLEPRICE -> 77.2 | CE20: CFFEX | CF20: HO | CG20: =[26]!INST_STATE -> 连续交易 | CH20: =[26]!UPDATETIME -> 10:48:55.900 | CI20: 100 | CJ20: 20240219
J21: 4.692877119e-05 | K21: 2400 | L21: 87.8 | M21: 10.8 | N21: 20240219 | O21: 100 | P21: =[27]!UPDATETIME -> 10:48:56.900 | Q21: =[27]!INST_STATE -> 连续交易 | R21: HO | S21: CFFEX | T21: =[27]!PRESETTLEPRICE -> 12.6 | U21: =[27]!PRECLOSE -> 12.6 | V21: =[27]!SETTLEPRICE ->  | W21: =[27]!CLOSEPRICE ->  | X21: =[27]!LOWERLIMITPRICE -> 0.2 | Y21: =[27]!UPPERLIMITPRICE -> 243.8 | Z21: =[27]!LOW -> 10 | AA21: =[27]!HIGH -> 14.2 | AB21: =[27]!OPENPRICE -> 13 | AC21: =[27]!OPTION_RHO -> 0.2547466487 | AD21: =[27]!OPTION_THETA -> -0.6904008218 | AE21: =[27]!OPTION_VEGA -> 1.533329401 | AF21: =[27]!OPTION_GAMMA -> 0.002744083691 | AG21: =[27]!OPTION_DELTA -> 0.1966008469 | AH21: =[27]!OPTION_MIDVOLATILITY -> 18.24646935 | AI21: =[27]!OPTION_ASKVOLATILITY -> 18.38379845 | AJ21: =[27]!OPTION_BIDVOLATILITY -> 18.10914026 | AK21: =[27]!OPTION_VOLATILITY -> 18.10914026 | AL21: =[27]!INTRINSICVALUE -> 0 | AM21: =[27]!TIMEVALUE -> 10.6 | AN21: =[27]!POSIVOL -> 2275 | AO21: =[27]!TRADEVOLUME -> 682 | AP21: =[27]!ASKVOLUME1 -> 52 | AQ21: =[27]!ASKPRICE1 -> 11 | AR21: =[27]!BIDPRICE1 -> 10.6 | AS21: =[27]!BIDVOLUME1 -> 6 | AT21: =[27]!NETCHANGERATE -> -15.87% | AU21: =[27]!NETCHANGE -> -2 | AV21: =[27]!MTMPL2375314700 -> 0 | AW21: =[27]!NETVOLUME2375314700 -> 0 | AX21: =[27]!LASTPRICE -> 10.6 | AY21: 2400 | AZ21: =[28]!LASTPRICE -> 98.4 | BA21: =[28]!NETVOLUME2375314700 -> 0 | BB21: =[28]!MTMPL2375314700 -> 0 | BC21: =[28]!NETCHANGE -> 1 | BD21: =[28]!NETCHANGERATE -> +1.03% | BE21: =[28]!BIDVOLUME1 -> 6 | BF21: =[28]!BIDPRICE1 -> 103 | BG21: =[28]!ASKPRICE1 -> 104.4 | BH21: =[28]!ASKVOLUME1 -> 13 | BI21: =[28]!TRADEVOLUME -> 10 | BJ21: =[28]!POSIVOL -> 98 | BK21: =[28]!TIMEVALUE -> 7.4 | BL21: =[28]!INTRINSICVALUE -> 91 | BM21: =[28]!OPTION_VOLATILITY -> 16.51612273 | BN21: =[28]!OPTION_BIDVOLATILITY -> 19.55567341 | BO21: =[28]!OPTION_ASKVOLATILITY -> 20.41626909 | BP21: =[28]!OPTION_MIDVOLATILITY -> 19.98597125 | BQ21: =[28]!OPTION_DELTA -> -0.7809840566 | BR21: =[28]!OPTION_GAMMA -> 0.002670273279 | BS21: =[28]!OPTION_VEGA -> 1.634331822 | BT21: =[28]!OPTION_THETA -> -0.6732958309 | BU21: =[28]!OPTION_RHO -> -1.096320985 | BV21: =[28]!OPENPRICE -> 99 | BW21: =[28]!HIGH -> 102 | BX21: =[28]!LOW -> 92.8 | BY21: =[28]!UPPERLIMITPRICE -> 328.6 | BZ21: =[28]!LOWERLIMITPRICE -> 0.2 | CA21: =[28]!CLOSEPRICE ->  | CB21: =[28]!SETTLEPRICE ->  | CC21: =[28]!PRECLOSE -> 97.4 | CD21: =[28]!PRESETTLEPRICE -> 97.4 | CE21: CFFEX | CF21: HO | CG21: =[28]!INST_STATE -> 连续交易 | CH21: =[28]!UPDATETIME -> 10:48:56.900 | CI21: 100 | CJ21: 20240219
J22: 3.106971608e-05 | K22: 2425 | L22: 111.6 | M22: 7.3 | N22: 20240219 | O22: 100 | P22: =[29]!UPDATETIME -> 10:48:55.900 | Q22: =[29]!INST_STATE -> 连续交易 | R22: HO | S22: CFFEX | T22: =[29]!PRESETTLEPRICE -> 8.8 | U22: =[29]!PRECLOSE -> 8.8 | V22: =[29]!SETTLEPRICE ->  | W22: =[29]!CLOSEPRICE ->  | X22: =[29]!LOWERLIMITPRICE -> 0.2 | Y22: =[29]!UPPERLIMITPRICE -> 240 | Z22: =[29]!LOW -> 7.2 | AA22: =[29]!HIGH -> 9.6 | AB22: =[29]!OPENPRICE -> 8.4 | AC22: =[29]!OPTION_RHO -> 0.1838031785 | AD22: =[29]!OPTION_THETA -> -0.5662895756 | AE22: =[29]!OPTION_VEGA -> 1.241399728 | AF22: =[29]!OPTION_GAMMA -> 0.002183675934 | AG22: =[29]!OPTION_DELTA -> 0.1416439888 | AH22: =[29]!OPTION_MIDVOLATILITY -> 18.56690391 | AI22: =[29]!OPTION_ASKVOLATILITY -> 18.6401461 | AJ22: =[29]!OPTION_BIDVOLATILITY -> 18.49366173 | AK22: =[29]!OPTION_VOLATILITY -> 18.6401461 | AL22: =[29]!INTRINSICVALUE -> 0 | AM22: =[29]!TIMEVALUE -> 7.4 | AN22: =[29]!POSIVOL -> 1168 | AO22: =[29]!TRADEVOLUME -> 293 | AP22: =[29]!ASKVOLUME1 -> 27 | AQ22: =[29]!ASKPRICE1 -> 7.4 | AR22: =[29]!BIDPRICE1 -> 7.2 | AS22: =[29]!BIDVOLUME1 -> 6 | AT22: =[29]!NETCHANGERATE -> -15.91% | AU22: =[29]!NETCHANGE -> -1.4 | AV22: =[29]!MTMPL2375314700 -> 0 | AW22: =[29]!NETVOLUME2375314700 -> 0 | AX22: =[29]!LASTPRICE -> 7.4 | AY22: 2425 | AZ22: =[30]!LASTPRICE -> 119 | BA22: =[30]!NETVOLUME2375314700 -> 0 | BB22: =[30]!MTMPL2375314700 -> 0 | BC22: =[30]!NETCHANGE -> -1 | BD22: =[30]!NETCHANGERATE -> -0.83% | BE22: =[30]!BIDVOLUME1 -> 6 | BF22: =[30]!BIDPRICE1 -> 124.6 | BG22: =[30]!ASKPRICE1 -> 126.2 | BH22: =[30]!ASKVOLUME1 -> 12 | BI22: =[30]!TRADEVOLUME -> 25 | BJ22: =[30]!POSIVOL -> 81 | BK22: =[30]!TIMEVALUE -> 3 | BL22: =[30]!INTRINSICVALUE -> 116 | BM22: =[30]!OPTION_VOLATILITY -> 15.16114231 | BN22: =[30]!OPTION_BIDVOLATILITY -> 20.03174761 | BO22: =[30]!OPTION_ASKVOLATILITY -> 21.20362257 | BP22: =[30]!OPTION_MIDVOLATILITY -> 20.61768509 | BQ22: =[30]!OPTION_DELTA -> -0.8320857101 | BR22: =[30]!OPTION_GAMMA -> 0.002200672839 | BS22: =[30]!OPTION_VEGA -> 1.389126196 | BT22: =[30]!OPTION_THETA -> -0.5698719764 | BU22: =[30]!OPTION_RHO -> -1.176485875 | BV22: =[30]!OPENPRICE -> 121.2 | BW22: =[30]!HIGH -> 121.6 | BX22: =[30]!LOW -> 112.8 | BY22: =[30]!UPPERLIMITPRICE -> 351.2 | BZ22: =[30]!LOWERLIMITPRICE -> 0.2 | CA22: =[30]!CLOSEPRICE ->  | CB22: =[30]!SETTLEPRICE ->  | CC22: =[30]!PRECLOSE -> 121.2 | CD22: =[30]!PRESETTLEPRICE -> 120 | CE22: CFFEX | CF22: HO | CG22: =[30]!INST_STATE -> 连续交易 | CH22: =[30]!UPDATETIME -> 10:48:54.900 | CI22: 100 | CJ22: 20240219
J23: 2.001460295e-05 | K23: 2450 | L23: 135 | M23: 4.8 | N23: 20240219 | O23: 100 | P23: =[31]!UPDATETIME -> 10:48:56.400 | Q23: =[31]!INST_STATE -> 连续交易 | R23: HO | S23: CFFEX | T23: =[31]!PRESETTLEPRICE -> 6 | U23: =[31]!PRECLOSE -> 6 | V23: =[31]!SETTLEPRICE ->  | W23: =[31]!CLOSEPRICE ->  | X23: =[31]!LOWERLIMITPRICE -> 0.2 | Y23: =[31]!UPPERLIMITPRICE -> 237.2 | Z23: =[31]!LOW -> 4.8 | AA23: =[31]!HIGH -> 6.6 | AB23: =[31]!OPENPRICE -> 6 | AC23: =[31]!OPTION_RHO -> 0.1289587764 | AD23: =[31]!OPTION_THETA -> -0.4450815675 | AE23: =[31]!OPTION_VEGA -> 0.9656987622 | AF23: =[31]!OPTION_GAMMA -> 0.001675717143 | AG23: =[31]!OPTION_DELTA -> 0.09924518264 | AH23: =[31]!OPTION_MIDVOLATILITY -> 18.82325156 | AI23: =[31]!OPTION_ASKVOLATILITY -> 19.04297812 | AJ23: =[31]!OPTION_BIDVOLATILITY -> 18.603525 | AK23: =[31]!OPTION_VOLATILITY -> 18.82325156 | AL23: =[31]!INTRINSICVALUE -> 0 | AM23: =[31]!TIMEVALUE -> 4.8 | AN23: =[31]!POSIVOL -> 1550 | AO23: =[31]!TRADEVOLUME -> 426 | AP23: =[31]!ASKVOLUME1 -> 40 | AQ23: =[31]!ASKPRICE1 -> 5 | AR23: =[31]!BIDPRICE1 -> 4.6 | AS23: =[31]!BIDVOLUME1 -> 76 | AT23: =[31]!NETCHANGERATE -> -20.00% | AU23: =[31]!NETCHANGE -> -1.2 | AV23: =[31]!MTMPL2375314700 -> 0 | AW23: =[31]!NETVOLUME2375314700 -> 0 | AX23: =[31]!LASTPRICE -> 4.8 | AY23: 2450 | AZ23: =[32]!LASTPRICE -> 139.8 | BA23: =[32]!NETVOLUME2375314700 -> 0 | BB23: =[32]!MTMPL2375314700 -> 0 | BC23: =[32]!NETCHANGE -> -1 | BD23: =[32]!NETCHANGERATE -> -0.71% | BE23: =[32]!BIDVOLUME1 -> 6 | BF23: =[32]!BIDPRICE1 -> 147.4 | BG23: =[32]!ASKPRICE1 -> 148.8 | BH23: =[32]!ASKVOLUME1 -> 6 | BI23: =[32]!TRADEVOLUME -> 25 | BJ23: =[32]!POSIVOL -> 82 | BK23: =[32]!TIMEVALUE -> -1.2 | BL23: =[32]!INTRINSICVALUE -> 141 | BM23: =[32]!OPTION_VOLATILITY -> 4.687509844 | BN23: =[32]!OPTION_BIDVOLATILITY -> 20.83741165 | BO23: =[32]!OPTION_ASKVOLATILITY -> 22.0459077 | BP23: =[32]!OPTION_MIDVOLATILITY -> 21.44165968 | BQ23: =[32]!OPTION_DELTA -> -0.8694475245 | BR23: =[32]!OPTION_GAMMA -> 0.001788399236 | BS23: =[32]!OPTION_VEGA -> 1.173901171 | BT23: =[32]!OPTION_THETA -> -0.4812877685 | BU23: =[32]!OPTION_RHO -> -1.239075792 | BV23: =[32]!OPENPRICE -> 143.6 | BW23: =[32]!HIGH -> 146 | BX23: =[32]!LOW -> 134.2 | BY23: =[32]!UPPERLIMITPRICE -> 372 | BZ23: =[32]!LOWERLIMITPRICE -> 0.2 | CA23: =[32]!CLOSEPRICE ->  | CB23: =[32]!SETTLEPRICE ->  | CC23: =[32]!PRECLOSE -> 140.6 | CD23: =[32]!PRESETTLEPRICE -> 140.8 | CE23: CFFEX | CF23: HO | CG23: =[32]!INST_STATE -> 连续交易 | CH23: =[32]!UPDATETIME -> 10:48:57.400 | CI23: 100 | CJ23: 20240219
J24: 1.389205266e-05 | K24: 2475 | L24: 160 | M24: 3.4 | N24: 20240219 | O24: 100 | P24: =[33]!UPDATETIME -> 10:48:55.900 | Q24: =[33]!INST_STATE -> 连续交易 | R24: HO | S24: CFFEX | T24: =[33]!PRESETTLEPRICE -> 4.4 | U24: =[33]!PRECLOSE -> 4.4 | V24: =[33]!SETTLEPRICE ->  | W24: =[33]!CLOSEPRICE ->  | X24: =[33]!LOWERLIMITPRICE -> 0.2 | Y24: =[33]!UPPERLIMITPRICE -> 235.6 | Z24: =[33]!LOW -> 3.2 | AA24: =[33]!HIGH -> 4.6 | AB24: =[33]!OPENPRICE -> 4 | AC24: =[33]!OPTION_RHO -> 0.09398169191 | AD24: =[33]!OPTION_THETA -> -0.3615178618 | AE24: =[33]!OPTION_VEGA -> 0.7614917214 | AF24: =[33]!OPTION_GAMMA -> 0.00127884387 | AG24: =[33]!OPTION_DELTA -> 0.07227853967 | AH24: =[33]!OPTION_MIDVOLATILITY -> 19.44581013 | AI24: =[33]!OPTION_ASKVOLATILITY -> 19.70215778 | AJ24: =[33]!OPTION_BIDVOLATILITY -> 19.18946249 | AK24: =[33]!OPTION_VOLATILITY -> 19.18946249 | AL24: =[33]!INTRINSICVALUE -> 0 | AM24: =[33]!TIMEVALUE -> 3.2 | AN24: =[33]!POSIVOL -> 712 | AO24: =[33]!TRADEVOLUME -> 350 | AP24: =[33]!ASKVOLUME1 -> 73 | AQ24: =[33]!ASKPRICE1 -> 3.6 | AR24: =[33]!BIDPRICE1 -> 3.2 | AS24: =[33]!BIDVOLUME1 -> 45 | AT24: =[33]!NETCHANGERATE -> -27.27% | AU24: =[33]!NETCHANGE -> -1.2 | AV24: =[33]!MTMPL2375314700 -> 0 | AW24: =[33]!NETVOLUME2375314700 -> 0 | AX24: =[33]!LASTPRICE -> 3.2 | AY24: 2475 | AZ24: =[34]!LASTPRICE -> 163.2 | BA24: =[34]!NETVOLUME2375314700 -> 0 | BB24: =[34]!MTMPL2375314700 -> 0 | BC24: =[34]!NETCHANGE -> -1 | BD24: =[34]!NETCHANGERATE -> -0.61% | BE24: =[34]!BIDVOLUME1 -> 6 | BF24: =[34]!BIDPRICE1 -> 170.6 | BG24: =[34]!ASKPRICE1 -> 172.2 | BH24: =[34]!ASKVOLUME1 -> 6 | BI24: =[34]!TRADEVOLUME -> 18 | BJ24: =[34]!POSIVOL -> 28 | BK24: =[34]!TIMEVALUE -> -2.8 | BL24: =[34]!INTRINSICVALUE -> 166 | BM24: =[34]!OPTION_VOLATILITY -> 11.42579087 | BN24: =[34]!OPTION_BIDVOLATILITY -> 21.82618115 | BO24: =[34]!OPTION_ASKVOLATILITY -> 23.40088813 | BP24: =[34]!OPTION_MIDVOLATILITY -> 22.61353464 | BQ24: =[34]!OPTION_DELTA -> -0.8939077335 | BR24: =[34]!OPTION_GAMMA -> 0.001464030614 | BS24: =[34]!OPTION_VEGA -> 1.013771851 | BT24: =[34]!OPTION_THETA -> -0.4234424043 | BU24: =[34]!OPTION_RHO -> -1.285095984 | BV24: =[34]!OPENPRICE -> 167 | BW24: =[34]!HIGH -> 167 | BX24: =[34]!LOW -> 157.6 | BY24: =[34]!UPPERLIMITPRICE -> 395.4 | BZ24: =[34]!LOWERLIMITPRICE -> 0.2 | CA24: =[34]!CLOSEPRICE ->  | CB24: =[34]!SETTLEPRICE ->  | CC24: =[34]!PRECLOSE -> 168.8 | CD24: =[34]!PRESETTLEPRICE -> 164.2 | CE24: CFFEX | CF24: HO | CG24: =[34]!INST_STATE -> 连续交易 | CH24: =[34]!UPDATETIME -> 10:48:54.900 | CI24: 100 | CJ24: 20240219
J25: 1.501720678e-05 | K25: 2500 | L25: 189 | M25: 2.5 | N25: 20240219 | O25: 100 | P25: =[35]!UPDATETIME -> 10:48:56.400 | Q25: =[35]!INST_STATE -> 连续交易 | R25: HO | S25: CFFEX | T25: =[35]!PRESETTLEPRICE -> 3.4 | U25: =[35]!PRECLOSE -> 3.4 | V25: =[35]!SETTLEPRICE ->  | W25: =[35]!CLOSEPRICE ->  | X25: =[35]!LOWERLIMITPRICE -> 0.2 | Y25: =[35]!UPPERLIMITPRICE -> 234.6 | Z25: =[35]!LOW -> 2.2 | AA25: =[35]!HIGH -> 3.2 | AB25: =[35]!OPENPRICE -> 2.8 | AC25: =[35]!OPTION_RHO -> 0.06993619418 | AD25: =[35]!OPTION_THETA -> -0.2979586531 | AE25: =[35]!OPTION_VEGA -> 0.6046765045 | AF25: =[35]!OPTION_GAMMA -> 0.0009761419666 | AG25: =[35]!OPTION_DELTA -> 0.05377817681 | AH25: =[35]!OPTION_MIDVOLATILITY -> 20.23316362 | AI25: =[35]!OPTION_ASKVOLATILITY -> 20.39795854 | AJ25: =[35]!OPTION_BIDVOLATILITY -> 20.06836871 | AK25: =[35]!OPTION_VOLATILITY -> 20.39795854 | AL25: =[35]!INTRINSICVALUE -> 0 | AM25: =[35]!TIMEVALUE -> 2.6 | AN25: =[35]!POSIVOL -> 927 | AO25: =[35]!TRADEVOLUME -> 286 | AP25: =[35]!ASKVOLUME1 -> 37 | AQ25: =[35]!ASKPRICE1 -> 2.6 | AR25: =[35]!BIDPRICE1 -> 2.4 | AS25: =[35]!BIDVOLUME1 -> 30 | AT25: =[35]!NETCHANGERATE -> -23.53% | AU25: =[35]!NETCHANGE -> -0.8 | AV25: =[35]!MTMPL2375314700 -> 0 | AW25: =[35]!NETVOLUME2375314700 -> 0 | AX25: =[35]!LASTPRICE -> 2.6 | AY25: 2500 | AZ25: =[36]!LASTPRICE -> 191.6 | BA25: =[36]!NETVOLUME2375314700 -> 0 | BB25: =[36]!MTMPL2375314700 -> 0 | BC25: =[36]!NETCHANGE -> 2.6 | BD25: =[36]!NETCHANGERATE -> +1.38% | BE25: =[36]!BIDVOLUME1 -> 6 | BF25: =[36]!BIDPRICE1 -> 194.6 | BG25: =[36]!ASKPRICE1 -> 196.8 | BH25: =[36]!ASKVOLUME1 -> 24 | BI25: =[36]!TRADEVOLUME -> 15 | BJ25: =[36]!POSIVOL -> 38 | BK25: =[36]!TIMEVALUE -> 0.6 | BL25: =[36]!INTRINSICVALUE -> 191 | BM25: =[36]!OPTION_VOLATILITY -> 17.79786097 | BN25: =[36]!OPTION_BIDVOLATILITY -> 22.77832955 | BO25: =[36]!OPTION_ASKVOLATILITY -> 25.23194275 | BP25: =[36]!OPTION_MIDVOLATILITY -> 24.00513615 | BQ25: =[36]!OPTION_DELTA -> -0.9111819578 | BR25: =[36]!OPTION_GAMMA -> 0.00121063444 | BS25: =[36]!OPTION_VEGA -> 0.8897408159 | BT25: =[36]!OPTION_THETA -> -0.3826379309 | BU25: =[36]!OPTION_RHO -> -1.321889094 | BV25: =[36]!OPENPRICE -> 190.6 | BW25: =[36]!HIGH -> 191.6 | BX25: =[36]!LOW -> 181.6 | BY25: =[36]!UPPERLIMITPRICE -> 420.2 | BZ25: =[36]!LOWERLIMITPRICE -> 0.2 | CA25: =[36]!CLOSEPRICE ->  | CB25: =[36]!SETTLEPRICE ->  | CC25: =[36]!PRECLOSE -> 214.4 | CD25: =[36]!PRESETTLEPRICE -> 189 | CE25: CFFEX | CF25: HO | CG25: =[36]!INST_STATE -> 连续交易 | CH25: =[36]!UPDATETIME -> 10:48:54.900 | CI25: 100 | CJ25: 20240219
J26: 1.154725627e-05 | K26: 2550 | L26: 229.2 | M26: 1.5 | N26: 20240219 | O26: 100 | P26: =[37]!UPDATETIME -> 10:48:52.900 | Q26: =[37]!INST_STATE -> 连续交易 | R26: HO | S26: CFFEX | T26: =[37]!PRESETTLEPRICE -> 2 | U26: =[37]!PRECLOSE -> 2.4 | V26: =[37]!SETTLEPRICE ->  | W26: =[37]!CLOSEPRICE ->  | X26: =[37]!LOWERLIMITPRICE -> 0.2 | Y26: =[37]!UPPERLIMITPRICE -> 233.2 | Z26: =[37]!LOW -> 1.4 | AA26: =[37]!HIGH -> 2.4 | AB26: =[37]!OPENPRICE -> 2.4 | AC26: =[37]!OPTION_RHO -> 0.04171495576 | AD26: =[37]!OPTION_THETA -> -0.2121718995 | AE26: =[37]!OPTION_VEGA -> 0.3979653699 | AF26: =[37]!OPTION_GAMMA -> 0.0005914298895 | AG26: =[37]!OPTION_DELTA -> 0.03207544304 | AH26: =[37]!OPTION_MIDVOLATILITY -> 21.97266552 | AI26: =[37]!OPTION_ASKVOLATILITY -> 22.26563426 | AJ26: =[37]!OPTION_BIDVOLATILITY -> 21.67969678 | AK26: =[37]!OPTION_VOLATILITY -> 21.67969678 | AL26: =[37]!INTRINSICVALUE -> 0 | AM26: =[37]!TIMEVALUE -> 1.4 | AN26: =[37]!POSIVOL -> 653 | AO26: =[37]!TRADEVOLUME -> 155 | AP26: =[37]!ASKVOLUME1 -> 22 | AQ26: =[37]!ASKPRICE1 -> 1.6 | AR26: =[37]!BIDPRICE1 -> 1.4 | AS26: =[37]!BIDVOLUME1 -> 57 | AT26: =[37]!NETCHANGERATE -> -30.00% | AU26: =[37]!NETCHANGE -> -0.6 | AV26: =[37]!MTMPL2375314700 -> 0 | AW26: =[37]!NETVOLUME2375314700 -> 0 | AX26: =[37]!LASTPRICE -> 1.4 | AY26: 2550 | AZ26: =[38]!LASTPRICE -> 230.6 | BA26: =[38]!NETVOLUME2375314700 -> 0 | BB26: =[38]!MTMPL2375314700 -> 0 | BC26: =[38]!NETCHANGE -> -6.8 | BD26: =[38]!NETCHANGERATE -> -2.86% | BE26: =[38]!BIDVOLUME1 -> 6 | BF26: =[38]!BIDPRICE1 -> 243.4 | BG26: =[38]!ASKPRICE1 -> 245.6 | BH26: =[38]!ASKVOLUME1 -> 6 | BI26: =[38]!TRADEVOLUME -> 22 | BJ26: =[38]!POSIVOL -> 72 | BK26: =[38]!TIMEVALUE -> -10.4 | BL26: =[38]!INTRINSICVALUE -> 241 | BM26: =[38]!OPTION_VOLATILITY ->  | BN26: =[38]!OPTION_BIDVOLATILITY -> 25.56153259 | BO26: =[38]!OPTION_ASKVOLATILITY -> 28.60108327 | BP26: =[38]!OPTION_MIDVOLATILITY -> 27.08130793 | BQ26: =[38]!OPTION_DELTA -> -0.9320849034 | BR26: =[38]!OPTION_GAMMA -> 0.0008753257444 | BS26: =[38]!OPTION_VEGA -> 0.7258735248 | BT26: =[38]!OPTION_THETA -> -0.3368188105 | BU26: =[38]!OPTION_RHO -> -1.377803612 | BV26: =[38]!OPENPRICE -> 238.4 | BW26: =[38]!HIGH -> 242.4 | BX26: =[38]!LOW -> 230.2 | BY26: =[38]!UPPERLIMITPRICE -> 468.6 | BZ26: =[38]!LOWERLIMITPRICE -> 6.2 | CA26: =[38]!CLOSEPRICE ->  | CB26: =[38]!SETTLEPRICE ->  | CC26: =[38]!PRECLOSE -> 246 | CD26: =[38]!PRESETTLEPRICE -> 237.4 | CE26: CFFEX | CF26: HO | CG26: =[38]!INST_STATE -> 连续交易 | CH26: =[38]!UPDATETIME -> 10:48:53.400 | CI26: 100 | CJ26: 20240219
J27: 6.664440878e-06 | K27: 2600 | L27: 286.2 | M27: 0.9 | N27: 20240219 | O27: 100 | P27: =[39]!UPDATETIME -> 10:45:46.900 | Q27: =[39]!INST_STATE -> 连续交易 | R27: HO | S27: CFFEX | T27: =[39]!PRESETTLEPRICE -> 1.4 | U27: =[39]!PRECLOSE -> 1.4 | V27: =[39]!SETTLEPRICE ->  | W27: =[39]!CLOSEPRICE ->  | X27: =[39]!LOWERLIMITPRICE -> 0.2 | Y27: =[39]!UPPERLIMITPRICE -> 232.6 | Z27: =[39]!LOW -> 0.8 | AA27: =[39]!HIGH -> 1.4 | AB27: =[39]!OPENPRICE -> 1.2 | AC27: =[39]!OPTION_RHO -> 0.02496609157 | AD27: =[39]!OPTION_THETA -> -0.1463319832 | AE27: =[39]!OPTION_VEGA -> 0.2587746032 | AF27: =[39]!OPTION_GAMMA -> 0.000361135708 | AG27: =[39]!OPTION_DELTA -> 0.01918020204 | AH27: =[39]!OPTION_MIDVOLATILITY -> 23.36426703 | AI27: =[39]!OPTION_ASKVOLATILITY -> 23.73047796 | AJ27: =[39]!OPTION_BIDVOLATILITY -> 22.99805611 | AK27: =[39]!OPTION_VOLATILITY -> 22.99805611 | AL27: =[39]!INTRINSICVALUE -> 0 | AM27: =[39]!TIMEVALUE -> 0.8 | AN27: =[39]!POSIVOL -> 296 | AO27: =[39]!TRADEVOLUME -> 121 | AP27: =[39]!ASKVOLUME1 -> 70 | AQ27: =[39]!ASKPRICE1 -> 1 | AR27: =[39]!BIDPRICE1 -> 0.8 | AS27: =[39]!BIDVOLUME1 -> 6 | AT27: =[39]!NETCHANGERATE -> -42.86% | AU27: =[39]!NETCHANGE -> -0.6 | AV27: =[39]!MTMPL2375314700 -> 0 | AW27: =[39]!NETVOLUME2375314700 -> 0 | AX27: =[39]!LASTPRICE -> 0.8 | AY27: 2600 | AZ27: =[40]!LASTPRICE -> 287 | BA27: =[40]!NETVOLUME2375314700 -> 0 | BB27: =[40]!MTMPL2375314700 -> 0 | BC27: =[40]!NETCHANGE -> 0.6 | BD27: =[40]!NETCHANGERATE -> +0.21% | BE27: =[40]!BIDVOLUME1 -> 6 | BF27: =[40]!BIDPRICE1 -> 292.6 | BG27: =[40]!ASKPRICE1 -> 295 | BH27: =[40]!ASKVOLUME1 -> 6 | BI27: =[40]!TRADEVOLUME -> 6 | BJ27: =[40]!POSIVOL -> 32 | BK27: =[40]!TIMEVALUE -> -4 | BL27: =[40]!INTRINSICVALUE -> 291 | BM27: =[40]!OPTION_VOLATILITY ->  | BN27: =[40]!OPTION_BIDVOLATILITY -> 28.19825125 | BO27: =[40]!OPTION_ASKVOLATILITY -> 32.15332924 | BP27: =[40]!OPTION_MIDVOLATILITY -> 30.17579024 | BQ27: =[40]!OPTION_DELTA -> -0.9451103668 | BR27: =[40]!OPTION_GAMMA -> 0.0006651051041 | BS27: =[40]!OPTION_VEGA -> 0.6146221416 | BT27: =[40]!OPTION_THETA -> -0.3060179708 | BU27: =[40]!OPTION_RHO -> -1.423488525 | BV27: =[40]!OPENPRICE -> 289.4 | BW27: =[40]!HIGH -> 289.4 | BX27: =[40]!LOW -> 287 | BY27: =[40]!UPPERLIMITPRICE -> 517.6 | BZ27: =[40]!LOWERLIMITPRICE -> 55.2 | CA27: =[40]!CLOSEPRICE ->  | CB27: =[40]!SETTLEPRICE ->  | CC27: =[40]!PRECLOSE -> 287.4 | CD27: =[40]!PRESETTLEPRICE -> 286.4 | CE27: CFFEX | CF27: HO | CG27: =[40]!INST_STATE -> 连续交易 | CH27: =[40]!UPDATETIME -> 10:48:53.400 | CI27: 100 | CJ27: 20240219
J28: =(K28-K27)/2*M28*EXP($G$4*$H$12)/(K28^2) -> 1.77999288e-06 | K28: 2650 | L28: 337 | M28: 0.5 | N28: 20240219 | O28: 100 | P28: =[41]!UPDATETIME -> 10:46:58.900 | Q28: =[41]!INST_STATE -> 连续交易 | R28: HO | S28: CFFEX | T28: =[41]!PRESETTLEPRICE -> 0.8 | U28: =[41]!PRECLOSE -> 1 | V28: =[41]!SETTLEPRICE ->  | W28: =[41]!CLOSEPRICE ->  | X28: =[41]!LOWERLIMITPRICE -> 0.2 | Y28: =[41]!UPPERLIMITPRICE -> 232 | Z28: =[41]!LOW -> 0.6 | AA28: =[41]!HIGH -> 1.2 | AB28: =[41]!OPENPRICE -> 1.2 | AC28: =[41]!OPTION_RHO -> 0.01393651785 | AD28: =[41]!OPTION_THETA -> -0.09253445662 | AE28: =[41]!OPTION_VEGA -> 0.1565922739 | AF28: =[41]!OPTION_GAMMA -> 0.0002087377307 | AG28: =[41]!OPTION_DELTA -> 0.01070253586 | AH28: =[41]!OPTION_MIDVOLATILITY -> 24.46289981 | AI28: =[41]!OPTION_ASKVOLATILITY -> 25.19532166 | AJ28: =[41]!OPTION_BIDVOLATILITY -> 23.73047796 | AK28: =[41]!OPTION_VOLATILITY -> 25.19532166 | AL28: =[41]!INTRINSICVALUE -> 0 | AM28: =[41]!TIMEVALUE -> 0.6 | AN28: =[41]!POSIVOL -> 304 | AO28: =[41]!TRADEVOLUME -> 99 | AP28: =[41]!ASKVOLUME1 -> 18 | AQ28: =[41]!ASKPRICE1 -> 0.6 | AR28: =[41]!BIDPRICE1 -> 0.4 | AS28: =[41]!BIDVOLUME1 -> 85 | AT28: =[41]!NETCHANGERATE -> -25.00% | AU28: =[41]!NETCHANGE -> -0.2 | AV28: =[41]!MTMPL2375314700 -> 0 | AW28: =[41]!NETVOLUME2375314700 -> 0 | AX28: =[41]!LASTPRICE -> 0.6 | AY28: 2650 | AZ28: =[42]!LASTPRICE -> 337.6 | BA28: =[42]!NETVOLUME2375314700 -> 0 | BB28: =[42]!MTMPL2375314700 -> 0 | BC28: =[42]!NETCHANGE -> 0.4 | BD28: =[42]!NETCHANGERATE -> +0.12% | BE28: =[42]!BIDVOLUME1 -> 6 | BF28: =[42]!BIDPRICE1 -> 342.2 | BG28: =[42]!ASKPRICE1 -> 344.2 | BH28: =[42]!ASKVOLUME1 -> 6 | BI28: =[42]!TRADEVOLUME -> 0 | BJ28: =[42]!POSIVOL -> 29 | BK28: =[42]!TIMEVALUE -> -3.4 | BL28: =[42]!INTRINSICVALUE -> 341 | BM28: =[42]!OPTION_VOLATILITY -> 23.43750922 | BN28: =[42]!OPTION_BIDVOLATILITY -> 31.49414958 | BO28: =[42]!OPTION_ASKVOLATILITY -> 35.19287992 | BP28: =[42]!OPTION_MIDVOLATILITY -> 33.34351475 | BQ28: =[42]!OPTION_DELTA -> -0.95323889 | BR28: =[42]!OPTION_GAMMA -> 0.0005297444928 | BS28: =[42]!OPTION_VEGA -> 0.5410188413 | BT28: =[42]!OPTION_THETA -> -0.2901947369 | BU28: =[42]!OPTION_RHO -> -1.462822704 | BV28: =[42]!OPENPRICE ->  | BW28: =[42]!HIGH ->  | BX28: =[42]!LOW ->  | BY28: =[42]!UPPERLIMITPRICE -> 568.4 | BZ28: =[42]!LOWERLIMITPRICE -> 106 | CA28: =[42]!CLOSEPRICE ->  | CB28: =[42]!SETTLEPRICE ->  | CC28: =[42]!PRECLOSE -> 337.6 | CD28: =[42]!PRESETTLEPRICE -> 337.2 | CE28: CFFEX | CF28: HO | CG28: =[42]!INST_STATE -> 连续交易 | CH28: =[42]!UPDATETIME -> 10:48:55.400 | CI28: 100 | CJ28: 20240219
J31: SDK | K31: K | L31: c-p | M31: 价外数据 | N31: 到期日 | O31: 合约乘数 | P31: 更新时间 | Q31: 合约状态 | R31: 品种 | S31: 交易所 | T31: 昨结 | U31: 昨收 | V31: 今结 | W31: 今收 | X31: 跌停 | Y31: 涨停 | Z31: 最低 | AA31: 最高 | AB31: 今开 | AC31: Rho | AD31: Theta | AE31: Vega | AF31: Gamma | AG31: Delta | AH31: MidIV | AI31: AskIV | AJ31: BidIV | AK31: IV | AL31: 内在价值 | AM31: 时间价值 | AN31: 持仓量 | AO31: 成交量 | AP31: 卖量 | AQ31: 卖价 | AR31: 买价 | AS31: 买量 | AT31: 涨跌% | AU31: 涨跌 | AV31: 持仓盈亏 | AW31: 净持仓 | AX31: 最新 | AY31: 执行价 | AZ31: 最新 | BA31: 净持仓 | BB31: 持仓盈亏 | BC31: 涨跌 | BD31: 涨跌% | BE31: 买量 | BF31: 买价 | BG31: 卖价 | BH31: 卖量 | BI31: 成交量 | BJ31: 持仓量 | BK31: 时间价值 | BL31: 内在价值 | BM31: IV | BN31: BidIV | BO31: AskIV | BP31: MidIV | BQ31: Delta | BR31: Gamma | BS31: Vega | BT31: Theta | BU31: Rho | BV31: 今开 | BW31: 最高 | BX31: 最低 | BY31: 涨停 | BZ31: 跌停 | CA31: 今收 | CB31: 今结 | CC31: 昨收 | CD31: 昨结 | CE31: 交易所 | CF31: 品种 | CG31: 合约状态 | CH31: 更新时间 | CI31: 合约乘数 | CJ31: 到期日
J32: =((K33-K32)/2)*M32*EXP($H$8*$H$12)/K32^2 -> 1.860165934e-05 | K32: =Extract_Non_numbers(AY32) -> 2075 | L32: =ABS(AX32-AZ32) -> 242.4 | M32: =IF(K32>$H$14,(AR32+AQ32)/2,(BF32+BG32)/2) -> 6.4 | N32: 20240315 | O32: 100 | P32: =[43]!UPDATETIME -> 10:48:52.900 | Q32: =[43]!INST_STATE -> 连续交易 | R32: HO | S32: CFFEX | T32: =[43]!PRESETTLEPRICE -> 248.4 | U32: =[43]!PRECLOSE -> 246.8 | V32: =[43]!SETTLEPRICE ->  | W32: =[43]!CLOSEPRICE ->  | X32: =[43]!LOWERLIMITPRICE -> 17.2 | Y32: =[43]!UPPERLIMITPRICE -> 479.6 | Z32: =[43]!LOW -> 244.6 | AA32: =[43]!HIGH -> 249 | AB32: =[43]!OPENPRICE -> 249 | AC32: =[43]!OPTION_RHO -> 2.556174216 | AD32: =[43]!OPTION_THETA -> -0.1694754235 | AE32: =[43]!OPTION_VEGA -> 0.3565837962 | AF32: =[43]!OPTION_GAMMA -> 0.0003513758947 | AG32: =[43]!OPTION_DELTA -> 0.9824005454 | AH32: =[43]!OPTION_MIDVOLATILITY -> 15.05127903 | AI32: =[43]!OPTION_ASKVOLATILITY -> 17.79786097 | AJ32: =[43]!OPTION_BIDVOLATILITY -> 12.30469709 | AK32: =[43]!OPTION_VOLATILITY -> 21.45997022 | AL32: =[43]!INTRINSICVALUE -> 235 | AM32: =[43]!TIMEVALUE -> 13.6 | AN32: =[43]!POSIVOL -> 15 | AO32: =[43]!TRADEVOLUME -> 5 | AP32: =[43]!ASKVOLUME1 -> 6 | AQ32: =[43]!ASKPRICE1 -> 245.4 | AR32: =[43]!BIDPRICE1 -> 243.4 | AS32: =[43]!BIDVOLUME1 -> 6 | AT32: =[43]!NETCHANGERATE -> +0.08% | AU32: =[43]!NETCHANGE -> 0.2 | AV32: =[43]!MTMPL2375314700 -> 0 | AW32: =[43]!NETVOLUME2375314700 -> 0 | AX32: =[43]!LASTPRICE -> 248.6 | AY32: 2075 | AZ32: =[44]!LASTPRICE -> 6.2 | BA32: =[44]!NETVOLUME2375314700 -> 0 | BB32: =[44]!MTMPL2375314700 -> 0 | BC32: =[44]!NETCHANGE -> -0.2 | BD32: =[44]!NETCHANGERATE -> -3.13% | BE32: =[44]!BIDVOLUME1 -> 26 | BF32: =[44]!BIDPRICE1 -> 6.2 | BG32: =[44]!ASKPRICE1 -> 6.6 | BH32: =[44]!ASKVOLUME1 -> 1 | BI32: =[44]!TRADEVOLUME -> 2 | BJ32: =[44]!POSIVOL -> 137 | BK32: =[44]!TIMEVALUE -> 6.2 | BL32: =[44]!INTRINSICVALUE -> 0 | BM32: =[44]!OPTION_VOLATILITY -> 22.22901317 | BN32: =[44]!OPTION_BIDVOLATILITY -> 22.22901317 | BO32: =[44]!OPTION_ASKVOLATILITY -> 22.558603 | BP32: =[44]!OPTION_MIDVOLATILITY -> 22.39380808 | BQ32: =[44]!OPTION_DELTA -> -0.07531421216 | BR32: =[44]!OPTION_GAMMA -> 0.0007722801712 | BS32: =[44]!OPTION_VEGA -> 1.16605509 | BT32: =[44]!OPTION_THETA -> -0.2739341107 | BU32: =[44]!OPTION_RHO -> -0.2276189273 | BV32: =[44]!OPENPRICE -> 6.4 | BW32: =[44]!HIGH -> 6.4 | BX32: =[44]!LOW -> 6.2 | BY32: =[44]!UPPERLIMITPRICE -> 237.6 | BZ32: =[44]!LOWERLIMITPRICE -> 0.2 | CA32: =[44]!CLOSEPRICE ->  | CB32: =[44]!SETTLEPRICE ->  | CC32: =[44]!PRECLOSE -> 6.4 | CD32: =[44]!PRESETTLEPRICE -> 6.4 | CE32: CFFEX | CF32: HO | CG32: =[44]!INST_STATE -> 连续交易 | CH32: =[44]!UPDATETIME -> 10:48:56.400 | CI32: 100 | CJ32: 20240315
J33: =((K34-K32)/2)*M33*EXP($H$8*$H$12)/K33^2 -> 4.597104116e-05 | K33: =Extract_Non_numbers(AY33) -> 2100 | L33: =ABS(AX33-AZ33) -> 218.6 | M33: =IF(K33>$H$14,(AR33+AQ33)/2,(BF33+BG33)/2) -> 8.1 | N33: 20240315 | O33: 100 | P33: =[45]!UPDATETIME -> 10:48:52.400 | Q33: =[45]!INST_STATE -> 连续交易 | R33: HO | S33: CFFEX | T33: =[45]!PRESETTLEPRICE -> 225.4 | U33: =[45]!PRECLOSE -> 228.2 | V33: =[45]!SETTLEPRICE ->  | W33: =[45]!CLOSEPRICE ->  | X33: =[45]!LOWERLIMITPRICE -> 0.2 | Y33: =[45]!UPPERLIMITPRICE -> 456.6 | Z33: =[45]!LOW -> 220 | AA33: =[45]!HIGH -> 232.6 | AB33: =[45]!OPENPRICE -> 232.6 | AC33: =[45]!OPTION_RHO -> 2.502663469 | AD33: =[45]!OPTION_THETA -> -0.253832768 | AE33: =[45]!OPTION_VEGA -> 0.7911493482 | AF33: =[45]!OPTION_GAMMA -> 0.0006957945988 | AG33: =[45]!OPTION_DELTA -> 0.9540755015 | AH33: =[45]!OPTION_MIDVOLATILITY -> 16.86402311 | AI33: =[45]!OPTION_ASKVOLATILITY -> 18.27393517 | AJ33: =[45]!OPTION_BIDVOLATILITY -> 15.45411105 | AK33: =[45]!OPTION_VOLATILITY -> 21.97266552 | AL33: =[45]!INTRINSICVALUE -> 210 | AM33: =[45]!TIMEVALUE -> 16.6 | AN33: =[45]!POSIVOL -> 86 | AO33: =[45]!TRADEVOLUME -> 14 | AP33: =[45]!ASKVOLUME1 -> 12 | AQ33: =[45]!ASKPRICE1 -> 222.2 | AR33: =[45]!BIDPRICE1 -> 220 | AS33: =[45]!BIDVOLUME1 -> 6 | AT33: =[45]!NETCHANGERATE -> +0.53% | AU33: =[45]!NETCHANGE -> 1.2 | AV33: =[45]!MTMPL2375314700 -> 0 | AW33: =[45]!NETVOLUME2375314700 -> 0 | AX33: =[45]!LASTPRICE -> 226.6 | AY33: 2100 | AZ33: =[46]!LASTPRICE -> 8 | BA33: =[46]!NETVOLUME2375314700 -> 0 | BB33: =[46]!MTMPL2375314700 -> 0 | BC33: =[46]!NETCHANGE -> -0.2 | BD33: =[46]!NETCHANGERATE -> -2.44% | BE33: =[46]!BIDVOLUME1 -> 12 | BF33: =[46]!BIDPRICE1 -> 7.8 | BG33: =[46]!ASKPRICE1 -> 8.4 | BH33: =[46]!ASKVOLUME1 -> 46 | BI33: =[46]!TRADEVOLUME -> 43 | BJ33: =[46]!POSIVOL -> 289 | BK33: =[46]!TIMEVALUE -> 8 | BL33: =[46]!INTRINSICVALUE -> 0 | BM33: =[46]!OPTION_VOLATILITY -> 21.75293896 | BN33: =[46]!OPTION_BIDVOLATILITY -> 21.60645459 | BO33: =[46]!OPTION_ASKVOLATILITY -> 22.0459077 | BP33: =[46]!OPTION_MIDVOLATILITY -> 21.82618115 | BQ33: =[46]!OPTION_DELTA -> -0.09373679758 | BR33: =[46]!OPTION_GAMMA -> 0.0009338155858 | BS33: =[46]!OPTION_VEGA -> 1.374216334 | BT33: =[46]!OPTION_THETA -> -0.3136961436 | BU33: =[46]!OPTION_RHO -> -0.2834623624 | BV33: =[46]!OPENPRICE -> 7.8 | BW33: =[46]!HIGH -> 8.4 | BX33: =[46]!LOW -> 7.6 | BY33: =[46]!UPPERLIMITPRICE -> 239.4 | BZ33: =[46]!LOWERLIMITPRICE -> 0.2 | CA33: =[46]!CLOSEPRICE ->  | CB33: =[46]!SETTLEPRICE ->  | CC33: =[46]!PRECLOSE -> 8.2 | CD33: =[46]!PRESETTLEPRICE -> 8.2 | CE33: CFFEX | CF33: HO | CG33: =[46]!INST_STATE -> 连续交易 | CH33: =[46]!UPDATETIME -> 10:48:56.400 | CI33: 100 | CJ33: 20240315
J34: =((K35-K33)/2)*M34*EXP($H$8*$H$12)/K34^2 -> 5.59810984e-05 | K34: 2125 | L34: 192.8 | M34: 10.1 | N34: 20240315 | O34: 100 | P34: =[47]!UPDATETIME -> 10:48:52.900 | Q34: =[47]!INST_STATE -> 连续交易 | R34: HO | S34: CFFEX | T34: =[47]!PRESETTLEPRICE -> 201.4 | U34: =[47]!PRECLOSE -> 201.4 | V34: =[47]!SETTLEPRICE ->  | W34: =[47]!CLOSEPRICE ->  | X34: =[47]!LOWERLIMITPRICE -> 0.2 | Y34: =[47]!UPPERLIMITPRICE -> 432.6 | Z34: =[47]!LOW -> 202.8 | AA34: =[47]!HIGH -> 203 | AB34: =[47]!OPENPRICE -> 203 | AC34: =[47]!OPTION_RHO -> 2.453885851 | AD34: =[47]!OPTION_THETA -> -0.3191984599 | AE34: =[47]!OPTION_VEGA -> 1.133470417 | AF34: =[47]!OPTION_GAMMA -> 0.0009745496047 | AG34: =[47]!OPTION_DELTA -> 0.9274322043 | AH34: =[47]!OPTION_MIDVOLATILITY -> 17.24854458 | AI34: =[47]!OPTION_ASKVOLATILITY -> 18.1274508 | AJ34: =[47]!OPTION_BIDVOLATILITY -> 16.36963836 | AK34: =[47]!OPTION_VOLATILITY -> 20.70923783 | AL34: =[47]!INTRINSICVALUE -> 185 | AM34: =[47]!TIMEVALUE -> 17.8 | AN34: =[47]!POSIVOL -> 20 | AO34: =[47]!TRADEVOLUME -> 4 | AP34: =[47]!ASKVOLUME1 -> 6 | AQ34: =[47]!ASKPRICE1 -> 199.2 | AR34: =[47]!BIDPRICE1 -> 197.2 | AS34: =[47]!BIDVOLUME1 -> 6 | AT34: =[47]!NETCHANGERATE -> +0.70% | AU34: =[47]!NETCHANGE -> 1.4 | AV34: =[47]!MTMPL2375314700 -> 0 | AW34: =[47]!NETVOLUME2375314700 -> 0 | AX34: =[47]!LASTPRICE -> 202.8 | AY34: 2125 | AZ34: =[48]!LASTPRICE -> 10 | BA34: =[48]!NETVOLUME2375314700 -> 0 | BB34: =[48]!MTMPL2375314700 -> 0 | BC34: =[48]!NETCHANGE -> -0.4 | BD34: =[48]!NETCHANGERATE -> -3.85% | BE34: =[48]!BIDVOLUME1 -> 10 | BF34: =[48]!BIDPRICE1 -> 9.8 | BG34: =[48]!ASKPRICE1 -> 10.4 | BH34: =[48]!ASKVOLUME1 -> 42 | BI34: =[48]!TRADEVOLUME -> 77 | BJ34: =[48]!POSIVOL -> 304 | BK34: =[48]!TIMEVALUE -> 10 | BL34: =[48]!INTRINSICVALUE -> 0 | BM34: =[48]!OPTION_VOLATILITY -> 21.13038039 | BN34: =[48]!OPTION_BIDVOLATILITY -> 20.98389602 | BO34: =[48]!OPTION_ASKVOLATILITY -> 21.36841749 | BP34: =[48]!OPTION_MIDVOLATILITY -> 21.17615676 | BQ34: =[48]!OPTION_DELTA -> -0.1151942309 | BR34: =[48]!OPTION_GAMMA -> 0.001117578606 | BS34: =[48]!OPTION_VEGA -> 1.595802008 | BT34: =[48]!OPTION_THETA -> -0.352161503 | BU34: =[48]!OPTION_RHO -> -0.3485238009 | BV34: =[48]!OPENPRICE -> 10 | BW34: =[48]!HIGH -> 11.4 | BX34: =[48]!LOW -> 9.2 | BY34: =[48]!UPPERLIMITPRICE -> 241.6 | BZ34: =[48]!LOWERLIMITPRICE -> 0.2 | CA34: =[48]!CLOSEPRICE ->  | CB34: =[48]!SETTLEPRICE ->  | CC34: =[48]!PRECLOSE -> 10.4 | CD34: =[48]!PRESETTLEPRICE -> 10.4 | CE34: CFFEX | CF34: HO | CG34: =[48]!INST_STATE -> 连续交易 | CH34: =[48]!UPDATETIME -> 10:48:55.400 | CI34: 100 | CJ34: 20240315
J35: 6.876456683e-05 | K35: 2150 | L35: 165.2 | M35: 12.7 | N35: 20240315 | O35: 100 | P35: =[49]!UPDATETIME -> 10:48:52.900 | Q35: =[49]!INST_STATE -> 连续交易 | R35: HO | S35: CFFEX | T35: =[49]!PRESETTLEPRICE -> 180.6 | U35: =[49]!PRECLOSE -> 184.8 | V35: =[49]!SETTLEPRICE ->  | W35: =[49]!CLOSEPRICE ->  | X35: =[49]!LOWERLIMITPRICE -> 0.2 | Y35: =[49]!UPPERLIMITPRICE -> 411.8 | Z35: =[49]!LOW -> 177.2 | AA35: =[49]!HIGH -> 181.8 | AB35: =[49]!OPENPRICE -> 180.4 | AC35: =[49]!OPTION_RHO -> 2.390771023 | AD35: =[49]!OPTION_THETA -> -0.3836687356 | AE35: =[49]!OPTION_VEGA -> 1.481753053 | AF35: =[49]!OPTION_GAMMA -> 0.001264941714 | AG35: =[49]!OPTION_DELTA -> 0.8961239387 | AH35: =[49]!OPTION_MIDVOLATILITY -> 17.36756313 | AI35: =[49]!OPTION_ASKVOLATILITY -> 18.10914026 | AJ35: =[49]!OPTION_BIDVOLATILITY -> 16.62598601 | AK35: =[49]!OPTION_VOLATILITY -> 18.49366173 | AL35: =[49]!INTRINSICVALUE -> 160 | AM35: =[49]!TIMEVALUE -> 17.8 | AN35: =[49]!POSIVOL -> 38 | AO35: =[49]!TRADEVOLUME -> 11 | AP35: =[49]!ASKVOLUME1 -> 18 | AQ35: =[49]!ASKPRICE1 -> 177.2 | AR35: =[49]!BIDPRICE1 -> 175 | AS35: =[49]!BIDVOLUME1 -> 6 | AT35: =[49]!NETCHANGERATE -> -1.55% | AU35: =[49]!NETCHANGE -> -2.8 | AV35: =[49]!MTMPL2375314700 -> 0 | AW35: =[49]!NETVOLUME2375314700 -> 0 | AX35: =[49]!LASTPRICE -> 177.8 | AY35: 2150 | AZ35: =[50]!LASTPRICE -> 12.6 | BA35: =[50]!NETVOLUME2375314700 -> 0 | BB35: =[50]!MTMPL2375314700 -> 0 | BC35: =[50]!NETCHANGE -> -1 | BD35: =[50]!NETCHANGERATE -> -7.35% | BE35: =[50]!BIDVOLUME1 -> 15 | BF35: =[50]!BIDPRICE1 -> 12.4 | BG35: =[50]!ASKPRICE1 -> 13 | BH35: =[50]!ASKVOLUME1 -> 6 | BI35: =[50]!TRADEVOLUME -> 108 | BJ35: =[50]!POSIVOL -> 520 | BK35: =[50]!TIMEVALUE -> 12.6 | BL35: =[50]!INTRINSICVALUE -> 0 | BM35: =[50]!OPTION_VOLATILITY -> 20.56275346 | BN35: =[50]!OPTION_BIDVOLATILITY -> 20.45289018 | BO35: =[50]!OPTION_ASKVOLATILITY -> 20.78248001 | BP35: =[50]!OPTION_MIDVOLATILITY -> 20.61768509 | BQ35: =[50]!OPTION_DELTA -> -0.1419022288 | BR35: =[50]!OPTION_GAMMA -> 0.001326576522 | BS35: =[50]!OPTION_VEGA -> 1.844754755 | BT35: =[50]!OPTION_THETA -> -0.3947361198 | BU35: =[50]!OPTION_RHO -> -0.4297124042 | BV35: =[50]!OPENPRICE -> 12.2 | BW35: =[50]!HIGH -> 14.2 | BX35: =[50]!LOW -> 11.8 | BY35: =[50]!UPPERLIMITPRICE -> 244.8 | BZ35: =[50]!LOWERLIMITPRICE -> 0.2 | CA35: =[50]!CLOSEPRICE ->  | CB35: =[50]!SETTLEPRICE ->  | CC35: =[50]!PRECLOSE -> 13.6 | CD35: =[50]!PRESETTLEPRICE -> 13.6 | CE35: CFFEX | CF35: HO | CG35: =[50]!INST_STATE -> 连续交易 | CH35: =[50]!UPDATETIME -> 10:48:54.400 | CI35: 100 | CJ35: 20240315
J36: 8.6768729e-05 | K36: 2175 | L36: 145.4 | M36: 16.4 | N36: 20240315 | O36: 100 | P36: =[51]!UPDATETIME -> 10:48:51.900 | Q36: =[51]!INST_STATE -> 连续交易 | R36: HO | S36: CFFEX | T36: =[51]!PRESETTLEPRICE -> 159.2 | U36: =[51]!PRECLOSE -> 157.2 | V36: =[51]!SETTLEPRICE ->  | W36: =[51]!CLOSEPRICE ->  | X36: =[51]!LOWERLIMITPRICE -> 0.2 | Y36: =[51]!UPPERLIMITPRICE -> 390.4 | Z36: =[51]!LOW -> 155.4 | AA36: =[51]!HIGH -> 161.2 | AB36: =[51]!OPENPRICE -> 159.6 | AC36: =[51]!OPTION_RHO -> 2.301024361 | AD36: =[51]!OPTION_THETA -> -0.4544896966 | AE36: =[51]!OPTION_VEGA -> 1.861874289 | AF36: =[51]!OPTION_GAMMA -> 0.001576285747 | AG36: =[51]!OPTION_DELTA -> 0.8561357902 | AH36: =[51]!OPTION_MIDVOLATILITY -> 17.5140475 | AI36: =[51]!OPTION_ASKVOLATILITY -> 18.10914026 | AJ36: =[51]!OPTION_BIDVOLATILITY -> 16.91895475 | AK36: =[51]!OPTION_VOLATILITY -> 20.72754837 | AL36: =[51]!INTRINSICVALUE -> 135 | AM36: =[51]!TIMEVALUE -> 26.2 | AN36: =[51]!POSIVOL -> 116 | AO36: =[51]!TRADEVOLUME -> 6 | AP36: =[51]!ASKVOLUME1 -> 12 | AQ36: =[51]!ASKPRICE1 -> 155.8 | AR36: =[51]!BIDPRICE1 -> 153.6 | AS36: =[51]!BIDVOLUME1 -> 6 | AT36: =[51]!NETCHANGERATE -> +1.26% | AU36: =[51]!NETCHANGE -> 2 | AV36: =[51]!MTMPL2375314700 -> 0 | AW36: =[51]!NETVOLUME2375314700 -> 0 | AX36: =[51]!LASTPRICE -> 161.2 | AY36: 2175 | AZ36: =[52]!LASTPRICE -> 15.8 | BA36: =[52]!NETVOLUME2375314700 -> 0 | BB36: =[52]!MTMPL2375314700 -> 0 | BC36: =[52]!NETCHANGE -> -1 | BD36: =[52]!NETCHANGERATE -> -5.95% | BE36: =[52]!BIDVOLUME1 -> 3 | BF36: =[52]!BIDPRICE1 -> 16 | BG36: =[52]!ASKPRICE1 -> 16.8 | BH36: =[52]!ASKVOLUME1 -> 22 | BI36: =[52]!TRADEVOLUME -> 68 | BJ36: =[52]!POSIVOL -> 179 | BK36: =[52]!TIMEVALUE -> 15.8 | BL36: =[52]!INTRINSICVALUE -> 0 | BM36: =[52]!OPTION_VOLATILITY -> 19.97681597 | BN36: =[52]!OPTION_BIDVOLATILITY -> 20.06836871 | BO36: =[52]!OPTION_ASKVOLATILITY -> 20.43457963 | BP36: =[52]!OPTION_MIDVOLATILITY -> 20.25147417 | BQ36: =[52]!OPTION_DELTA -> -0.1765804304 | BR36: =[52]!OPTION_GAMMA -> 0.001558811063 | BS36: =[52]!OPTION_VEGA -> 2.129016389 | BT36: =[52]!OPTION_THETA -> -0.4453683057 | BU36: =[52]!OPTION_RHO -> -0.5354590745 | BV36: =[52]!OPENPRICE -> 16.2 | BW36: =[52]!HIGH -> 18 | BX36: =[52]!LOW -> 15.4 | BY36: =[52]!UPPERLIMITPRICE -> 248 | BZ36: =[52]!LOWERLIMITPRICE -> 0.2 | CA36: =[52]!CLOSEPRICE ->  | CB36: =[52]!SETTLEPRICE ->  | CC36: =[52]!PRECLOSE -> 16.8 | CD36: =[52]!PRESETTLEPRICE -> 16.8 | CE36: CFFEX | CF36: HO | CG36: =[52]!INST_STATE -> 连续交易 | CH36: =[52]!UPDATETIME -> 10:48:55.400 | CI36: 100 | CJ36: 20240315
J37: 0.0001085955036 | K37: 2200 | L37: 117.6 | M37: 21 | N37: 20240315 | O37: 100 | P37: =[53]!UPDATETIME -> 10:48:52.900 | Q37: =[53]!INST_STATE -> 连续交易 | R37: HO | S37: CFFEX | T37: =[53]!PRESETTLEPRICE -> 138.8 | U37: =[53]!PRECLOSE -> 136.6 | V37: =[53]!SETTLEPRICE ->  | W37: =[53]!CLOSEPRICE ->  | X37: =[53]!LOWERLIMITPRICE -> 0.2 | Y37: =[53]!UPPERLIMITPRICE -> 370 | Z37: =[53]!LOW -> 137.2 | AA37: =[53]!HIGH -> 143.2 | AB37: =[53]!OPENPRICE -> 140.4 | AC37: =[53]!OPTION_RHO -> 2.192603718 | AD37: =[53]!OPTION_THETA -> -0.5191524773 | AE37: =[53]!OPTION_VEGA -> 2.227469477 | AF37: =[53]!OPTION_GAMMA -> 0.001887115735 | AG37: =[53]!OPTION_DELTA -> 0.8101205192 | AH37: =[53]!OPTION_MIDVOLATILITY -> 17.50489223 | AI37: =[53]!OPTION_ASKVOLATILITY -> 17.90772425 | AJ37: =[53]!OPTION_BIDVOLATILITY -> 17.10206021 | AK37: =[53]!OPTION_VOLATILITY -> 18.85987265 | AL37: =[53]!INTRINSICVALUE -> 110 | AM37: =[53]!TIMEVALUE -> 27.2 | AN37: =[53]!POSIVOL -> 281 | AO37: =[53]!TRADEVOLUME -> 15 | AP37: =[53]!ASKVOLUME1 -> 6 | AQ37: =[53]!ASKPRICE1 -> 135 | AR37: =[53]!BIDPRICE1 -> 133.2 | AS37: =[53]!BIDVOLUME1 -> 6 | AT37: =[53]!NETCHANGERATE -> -1.15% | AU37: =[53]!NETCHANGE -> -1.6 | AV37: =[53]!MTMPL2375314700 -> 0 | AW37: =[53]!NETVOLUME2375314700 -> 0 | AX37: =[53]!LASTPRICE -> 137.2 | AY37: 2200 | AZ37: =[54]!LASTPRICE -> 19.6 | BA37: =[54]!NETVOLUME2375314700 -> 0 | BB37: =[54]!MTMPL2375314700 -> 0 | BC37: =[54]!NETCHANGE -> -2.6 | BD37: =[54]!NETCHANGERATE -> -11.71% | BE37: =[54]!BIDVOLUME1 -> 7 | BF37: =[54]!BIDPRICE1 -> 20.6 | BG37: =[54]!ASKPRICE1 -> 21.4 | BH37: =[54]!ASKVOLUME1 -> 6 | BI37: =[54]!TRADEVOLUME -> 159 | BJ37: =[54]!POSIVOL -> 432 | BK37: =[54]!TIMEVALUE -> 19.6 | BL37: =[54]!INTRINSICVALUE -> 0 | BM37: =[54]!OPTION_VOLATILITY -> 19.29932576 | BN37: =[54]!OPTION_BIDVOLATILITY -> 19.72046833 | BO37: =[54]!OPTION_ASKVOLATILITY -> 20.05005816 | BP37: =[54]!OPTION_MIDVOLATILITY -> 19.88526324 | BQ37: =[54]!OPTION_DELTA -> -0.2173591599 | BR37: =[54]!OPTION_GAMMA -> 0.001800743809 | BS37: =[54]!OPTION_VEGA -> 2.41455476 | BT37: =[54]!OPTION_THETA -> -0.4931917746 | BU37: =[54]!OPTION_RHO -> -0.6601034466 | BV37: =[54]!OPENPRICE -> 20.8 | BW37: =[54]!HIGH -> 22.6 | BX37: =[54]!LOW -> 19.6 | BY37: =[54]!UPPERLIMITPRICE -> 253.4 | BZ37: =[54]!LOWERLIMITPRICE -> 0.2 | CA37: =[54]!CLOSEPRICE ->  | CB37: =[54]!SETTLEPRICE ->  | CC37: =[54]!PRECLOSE -> 22.2 | CD37: =[54]!PRESETTLEPRICE -> 22.2 | CE37: CFFEX | CF37: HO | CG37: =[54]!INST_STATE -> 连续交易 | CH37: =[54]!UPDATETIME -> 10:48:51.900 | CI37: 100 | CJ37: 20240315
A38: 更新时间 | B38: VIX | J38: 0.0001349861284 | K38: 2225 | L38: 93.4 | M38: 26.7 | N38: 20240315 | O38: 100 | P38: =[55]!UPDATETIME -> 10:48:50.400 | Q38: =[55]!INST_STATE -> 连续交易 | R38: HO | S38: CFFEX | T38: =[55]!PRESETTLEPRICE -> 119.8 | U38: =[55]!PRECLOSE -> 117.6 | V38: =[55]!SETTLEPRICE ->  | W38: =[55]!CLOSEPRICE ->  | X38: =[55]!LOWERLIMITPRICE -> 0.2 | Y38: =[55]!UPPERLIMITPRICE -> 351 | Z38: =[55]!LOW -> 116.2 | AA38: =[55]!HIGH -> 123.2 | AB38: =[55]!OPENPRICE -> 120.2 | AC38: =[55]!OPTION_RHO -> 2.068425376 | AD38: =[55]!OPTION_THETA -> -0.5748947533 | AE38: =[55]!OPTION_VEGA -> 2.558174068 | AF38: =[55]!OPTION_GAMMA -> 0.002173937015 | AG38: =[55]!OPTION_DELTA -> 0.759198679 | AH38: =[55]!OPTION_MIDVOLATILITY -> 17.44080532 | AI38: =[55]!OPTION_ASKVOLATILITY -> 17.83448206 | AJ38: =[55]!OPTION_BIDVOLATILITY -> 17.04712857 | AK38: =[55]!OPTION_VOLATILITY -> 19.20777303 | AL38: =[55]!INTRINSICVALUE -> 85 | AM38: =[55]!TIMEVALUE -> 35 | AN38: =[55]!POSIVOL -> 232 | AO38: =[55]!TRADEVOLUME -> 9 | AP38: =[55]!ASKVOLUME1 -> 6 | AQ38: =[55]!ASKPRICE1 -> 116 | AR38: =[55]!BIDPRICE1 -> 114.4 | AS38: =[55]!BIDVOLUME1 -> 6 | AT38: =[55]!NETCHANGERATE -> +0.17% | AU38: =[55]!NETCHANGE -> 0.2 | AV38: =[55]!MTMPL2375314700 -> 0 | AW38: =[55]!NETVOLUME2375314700 -> 0 | AX38: =[55]!LASTPRICE -> 120 | AY38: 2225 | AZ38: =[56]!LASTPRICE -> 26.6 | BA38: =[56]!NETVOLUME2375314700 -> 0 | BB38: =[56]!MTMPL2375314700 -> 0 | BC38: =[56]!NETCHANGE -> -0.6 | BD38: =[56]!NETCHANGERATE -> -2.21% | BE38: =[56]!BIDVOLUME1 -> 7 | BF38: =[56]!BIDPRICE1 -> 26.2 | BG38: =[56]!ASKPRICE1 -> 27.2 | BH38: =[56]!ASKVOLUME1 -> 6 | BI38: =[56]!TRADEVOLUME -> 54 | BJ38: =[56]!POSIVOL -> 328 | BK38: =[56]!TIMEVALUE -> 26.6 | BL38: =[56]!INTRINSICVALUE -> 0 | BM38: =[56]!OPTION_VOLATILITY -> 19.55567341 | BN38: =[56]!OPTION_BIDVOLATILITY -> 19.40918904 | BO38: =[56]!OPTION_ASKVOLATILITY -> 19.77539997 | BP38: =[56]!OPTION_MIDVOLATILITY -> 19.5922945 | BQ38: =[56]!OPTION_DELTA -> -0.2637577835 | BR38: =[56]!OPTION_GAMMA -> 0.002030687063 | BS38: =[56]!OPTION_VEGA -> 2.683689564 | BT38: =[56]!OPTION_THETA -> -0.5366187511 | BU38: =[56]!OPTION_RHO -> -0.8026778058 | BV38: =[56]!OPENPRICE -> 27.6 | BW38: =[56]!HIGH -> 28.2 | BX38: =[56]!LOW -> 24.6 | BY38: =[56]!UPPERLIMITPRICE -> 258.4 | BZ38: =[56]!LOWERLIMITPRICE -> 0.2 | CA38: =[56]!CLOSEPRICE ->  | CB38: =[56]!SETTLEPRICE ->  | CC38: =[56]!PRECLOSE -> 27.4 | CD38: =[56]!PRESETTLEPRICE -> 27.2 | CE38: CFFEX | CF38: HO | CG38: =[56]!INST_STATE -> 连续交易 | CH38: =[56]!UPDATETIME -> 10:48:53.900 | CI38: 100 | CJ38: 20240315
A39: 45320.4542 | B39: 19.56699192 | J39: 0.0001690826245 | K39: 2250 | L39: 66.6 | M39: 34.2 | N39: 20240315 | O39: 100 | P39: =[57]!UPDATETIME -> 10:48:53.900 | Q39: =[57]!INST_STATE -> 连续交易 | R39: HO | S39: CFFEX | T39: =[57]!PRESETTLEPRICE -> 101.4 | U39: =[57]!PRECLOSE -> 101.4 | V39: =[57]!SETTLEPRICE ->  | W39: =[57]!CLOSEPRICE ->  | X39: =[57]!LOWERLIMITPRICE -> 0.2 | Y39: =[57]!UPPERLIMITPRICE -> 332.6 | Z39: =[57]!LOW -> 98.4 | AA39: =[57]!HIGH -> 108.4 | AB39: =[57]!OPENPRICE -> 100 | AC39: =[57]!OPTION_RHO -> 1.912163574 | AD39: =[57]!OPTION_THETA -> -0.6280414277 | AE39: =[57]!OPTION_VEGA -> 2.863836948 | AF39: =[57]!OPTION_GAMMA -> 0.002425618056 | AG39: =[57]!OPTION_DELTA -> 0.6980484454 | AH39: =[57]!OPTION_MIDVOLATILITY -> 17.50489223 | AI39: =[57]!OPTION_ASKVOLATILITY -> 17.85279261 | AJ39: =[57]!OPTION_BIDVOLATILITY -> 17.15699185 | AK39: =[57]!OPTION_VOLATILITY -> 18.1274508 | AL39: =[57]!INTRINSICVALUE -> 59.8 | AM39: =[57]!TIMEVALUE -> 39.6 | AN39: =[57]!POSIVOL -> 577 | AO39: =[57]!TRADEVOLUME -> 48 | AP39: =[57]!ASKVOLUME1 -> 6 | AQ39: =[57]!ASKPRICE1 -> 98.6 | AR39: =[57]!BIDPRICE1 -> 96.6 | AS39: =[57]!BIDVOLUME1 -> 6 | AT39: =[57]!NETCHANGERATE -> -1.97% | AU39: =[57]!NETCHANGE -> -2 | AV39: =[57]!MTMPL2375314700 -> 0 | AW39: =[57]!NETVOLUME2375314700 -> 0 | AX39: =[57]!LASTPRICE -> 99.4 | AY39: 2250 | AZ39: =[58]!LASTPRICE -> 32.8 | BA39: =[58]!NETVOLUME2375314700 -> 0 | BB39: =[58]!MTMPL2375314700 -> 0 | BC39: =[58]!NETCHANGE -> -2.2 | BD39: =[58]!NETCHANGERATE -> -6.29% | BE39: =[58]!BIDVOLUME1 -> 9 | BF39: =[58]!BIDPRICE1 -> 33.6 | BG39: =[58]!ASKPRICE1 -> 34.8 | BH39: =[58]!ASKVOLUME1 -> 10 | BI39: =[58]!TRADEVOLUME -> 48 | BJ39: =[58]!POSIVOL -> 348 | BK39: =[58]!TIMEVALUE -> 32.8 | BL39: =[58]!INTRINSICVALUE -> 0 | BM39: =[58]!OPTION_VOLATILITY -> 18.9788912 | BN39: =[58]!OPTION_BIDVOLATILITY -> 19.2535494 | BO39: =[58]!OPTION_ASKVOLATILITY -> 19.66553669 | BP39: =[58]!OPTION_MIDVOLATILITY -> 19.45954304 | BQ39: =[58]!OPTION_DELTA -> -0.3180085014 | BR39: =[58]!OPTION_GAMMA -> 0.00223180154 | BS39: =[58]!OPTION_VEGA -> 2.929237871 | BT39: =[58]!OPTION_THETA -> -0.5773973671 | BU39: =[58]!OPTION_RHO -> -0.9702681748 | BV39: =[58]!OPENPRICE -> 35 | BW39: =[58]!HIGH -> 36.2 | BX39: =[58]!LOW -> 31.8 | BY39: =[58]!UPPERLIMITPRICE -> 266.2 | BZ39: =[58]!LOWERLIMITPRICE -> 0.2 | CA39: =[58]!CLOSEPRICE ->  | CB39: =[58]!SETTLEPRICE ->  | CC39: =[58]!PRECLOSE -> 35 | CD39: =[58]!PRESETTLEPRICE -> 35 | CE39: CFFEX | CF39: HO | CG39: =[58]!INST_STATE -> 连续交易 | CH39: =[58]!UPDATETIME -> 10:48:55.900 | CI39: 100 | CJ39: 20240315
A40: 45320.46088 | B40: 19.12876421 | J40: 0.0002089098202 | K40: 2275 | L40: 42.6 | M40: 43.2 | N40: 20240315 | O40: 100 | P40: =[59]!UPDATETIME -> 10:48:50.900 | Q40: =[59]!INST_STATE -> 连续交易 | R40: HO | S40: CFFEX | T40: =[59]!PRESETTLEPRICE -> 85.6 | U40: =[59]!PRECLOSE -> 85 | V40: =[59]!SETTLEPRICE ->  | W40: =[59]!CLOSEPRICE ->  | X40: =[59]!LOWERLIMITPRICE -> 0.2 | Y40: =[59]!UPPERLIMITPRICE -> 316.8 | Z40: =[59]!LOW -> 83.2 | AA40: =[59]!HIGH -> 90.8 | AB40: =[59]!OPENPRICE -> 86.4 | AC40: =[59]!OPTION_RHO -> 1.74429013 | AD40: =[59]!OPTION_THETA -> -0.6647564342 | AE40: =[59]!OPTION_VEGA -> 3.091117656 | AF40: =[59]!OPTION_GAMMA -> 0.002614475865 | AG40: =[59]!OPTION_DELTA -> 0.6335661314 | AH40: =[59]!OPTION_MIDVOLATILITY -> 17.52778041 | AI40: =[59]!OPTION_ASKVOLATILITY -> 17.7520846 | AJ40: =[59]!OPTION_BIDVOLATILITY -> 17.30347622 | AK40: =[59]!OPTION_VOLATILITY -> 18.78663047 | AL40: =[59]!INTRINSICVALUE -> 35 | AM40: =[59]!TIMEVALUE -> 50.6 | AN40: =[59]!POSIVOL -> 339 | AO40: =[59]!TRADEVOLUME -> 10 | AP40: =[59]!ASKVOLUME1 -> 6 | AQ40: =[59]!ASKPRICE1 -> 82.4 | AR40: =[59]!BIDPRICE1 -> 81 | AS40: =[59]!BIDVOLUME1 -> 6 | AT40: =[59]!NETCHANGERATE -> 0.00% | AU40: =[59]!NETCHANGE -> 0 | AV40: =[59]!MTMPL2375314700 -> 0 | AW40: =[59]!NETVOLUME2375314700 -> 0 | AX40: =[59]!LASTPRICE -> 85.6 | AY40: 2275 | AZ40: =[60]!LASTPRICE -> 43 | BA40: =[60]!NETVOLUME2375314700 -> 0 | BB40: =[60]!MTMPL2375314700 -> 0 | BC40: =[60]!NETCHANGE -> -0.8 | BD40: =[60]!NETCHANGERATE -> -1.83% | BE40: =[60]!BIDVOLUME1 -> 5 | BF40: =[60]!BIDPRICE1 -> 42.6 | BG40: =[60]!ASKPRICE1 -> 43.8 | BH40: =[60]!ASKVOLUME1 -> 16 | BI40: =[60]!TRADEVOLUME -> 33 | BJ40: =[60]!POSIVOL -> 159 | BK40: =[60]!TIMEVALUE -> 43 | BL40: =[60]!INTRINSICVALUE -> 0 | BM40: =[60]!OPTION_VOLATILITY -> 19.30848104 | BN40: =[60]!OPTION_BIDVOLATILITY -> 19.18030721 | BO40: =[60]!OPTION_ASKVOLATILITY -> 19.56482868 | BP40: =[60]!OPTION_MIDVOLATILITY -> 19.37256795 | BQ40: =[60]!OPTION_DELTA -> -0.3763624668 | BR40: =[60]!OPTION_GAMMA -> 0.002385985686 | BS40: =[60]!OPTION_VEGA -> 3.117877167 | BT40: =[60]!OPTION_THETA -> -0.6064582059 | BU40: =[60]!OPTION_RHO -> -1.151783092 | BV40: =[60]!OPENPRICE -> 51.2 | BW40: =[60]!HIGH -> 51.2 | BX40: =[60]!LOW -> 39.8 | BY40: =[60]!UPPERLIMITPRICE -> 275 | BZ40: =[60]!LOWERLIMITPRICE -> 0.2 | CA40: =[60]!CLOSEPRICE ->  | CB40: =[60]!SETTLEPRICE ->  | CC40: =[60]!PRECLOSE -> 41.6 | CD40: =[60]!PRESETTLEPRICE -> 43.8 | CE40: CFFEX | CF40: HO | CG40: =[60]!INST_STATE -> 连续交易 | CH40: =[60]!UPDATETIME -> 10:48:55.900 | CI40: 100 | CJ40: 20240315
A41: 45320.45443 | B41: 19.55811551 | J41: 0.0002569106264 | K41: 2300 | L41: 17.6 | M41: 54.3 | N41: 20240315 | O41: 100 | P41: =[61]!UPDATETIME -> 10:48:55.900 | Q41: =[61]!INST_STATE -> 连续交易 | R41: HO | S41: CFFEX | T41: =[61]!PRESETTLEPRICE -> 73 | U41: =[61]!PRECLOSE -> 73 | V41: =[61]!SETTLEPRICE ->  | W41: =[61]!CLOSEPRICE ->  | X41: =[61]!LOWERLIMITPRICE -> 0.2 | Y41: =[61]!UPPERLIMITPRICE -> 304.2 | Z41: =[61]!LOW -> 68.4 | AA41: =[61]!HIGH -> 77 | AB41: =[61]!OPENPRICE -> 68.4 | AC41: =[61]!OPTION_RHO -> 1.565816763 | AD41: =[61]!OPTION_THETA -> -0.6906661758 | AE41: =[61]!OPTION_VEGA -> 3.231551656 | AF41: =[61]!OPTION_GAMMA -> 0.00270196712 | AG41: =[61]!OPTION_DELTA -> 0.5664234459 | AH41: =[61]!OPTION_MIDVOLATILITY -> 17.72461878 | AI41: =[61]!OPTION_ASKVOLATILITY -> 17.90772425 | AJ41: =[61]!OPTION_BIDVOLATILITY -> 17.54151332 | AK41: =[61]!OPTION_VOLATILITY -> 18.402109 | AL41: =[61]!INTRINSICVALUE -> 9.8 | AM41: =[61]!TIMEVALUE -> 60.6 | AN41: =[61]!POSIVOL -> 1226 | AO41: =[61]!TRADEVOLUME -> 129 | AP41: =[61]!ASKVOLUME1 -> 12 | AQ41: =[61]!ASKPRICE1 -> 68.8 | AR41: =[61]!BIDPRICE1 -> 67.6 | AS41: =[61]!BIDVOLUME1 -> 6 | AT41: =[61]!NETCHANGERATE -> -3.56% | AU41: =[61]!NETCHANGE -> -2.6 | AV41: =[61]!MTMPL2375314700 -> 0 | AW41: =[61]!NETVOLUME2375314700 -> 0 | AX41: =[61]!LASTPRICE -> 70.4 | AY41: 2300 | AZ41: =[62]!LASTPRICE -> 52.8 | BA41: =[62]!NETVOLUME2375314700 -> 0 | BB41: =[62]!MTMPL2375314700 -> 0 | BC41: =[62]!NETCHANGE -> -2 | BD41: =[62]!NETCHANGERATE -> -3.65% | BE41: =[62]!BIDVOLUME1 -> 2 | BF41: =[62]!BIDPRICE1 -> 53.8 | BG41: =[62]!ASKPRICE1 -> 54.8 | BH41: =[62]!ASKVOLUME1 -> 10 | BI41: =[62]!TRADEVOLUME -> 70 | BJ41: =[62]!POSIVOL -> 359 | BK41: =[62]!TIMEVALUE -> 52.8 | BL41: =[62]!INTRINSICVALUE -> 0 | BM41: =[62]!OPTION_VOLATILITY -> 19.06128866 | BN41: =[62]!OPTION_BIDVOLATILITY -> 19.37256795 | BO41: =[62]!OPTION_ASKVOLATILITY -> 19.68384723 | BP41: =[62]!OPTION_MIDVOLATILITY -> 19.52820759 | BQ41: =[62]!OPTION_DELTA -> -0.4370089745 | BR41: =[62]!OPTION_GAMMA -> 0.002455798311 | BS41: =[62]!OPTION_VEGA -> 3.236284967 | BT41: =[62]!OPTION_THETA -> -0.6285580028 | BU41: =[62]!OPTION_RHO -> -1.342877114 | BV41: =[62]!OPENPRICE -> 55.2 | BW41: =[62]!HIGH -> 56.8 | BX41: =[62]!LOW -> 50.2 | BY41: =[62]!UPPERLIMITPRICE -> 286 | BZ41: =[62]!LOWERLIMITPRICE -> 0.2 | CA41: =[62]!CLOSEPRICE ->  | CB41: =[62]!SETTLEPRICE ->  | CC41: =[62]!PRECLOSE -> 54.8 | CD41: =[62]!PRESETTLEPRICE -> 54.8 | CE41: CFFEX | CF41: HO | CG41: =[62]!INST_STATE -> 连续交易 | CH41: =[62]!UPDATETIME -> 10:48:50.900 | CI41: 100 | CJ41: 20240315
A42: 45320.45455 | B42: 19.2565318 | J42: 0.000283826192 | K42: 2325 | L42: 6.6 | M42: =(AR42+ AQ42) / 4 + (BG42+ BF42) / 4 -> 61.3 | N42: 20240315 | O42: 100 | P42: =[63]!UPDATETIME -> 10:48:57.400 | Q42: =[63]!INST_STATE -> 连续交易 | R42: HO | S42: CFFEX | T42: =[63]!PRESETTLEPRICE -> 58.8 | U42: =[63]!PRECLOSE -> 58.6 | V42: =[63]!SETTLEPRICE ->  | W42: =[63]!CLOSEPRICE ->  | X42: =[63]!LOWERLIMITPRICE -> 0.2 | Y42: =[63]!UPPERLIMITPRICE -> 290 | Z42: =[63]!LOW -> 57 | AA42: =[63]!HIGH -> 63.2 | AB42: =[63]!OPENPRICE -> 59.6 | AC42: =[63]!OPTION_RHO -> 1.38040998 | AD42: =[63]!OPTION_THETA -> -0.6934013759 | AE42: =[63]!OPTION_VEGA -> 3.276589469 | AF42: =[63]!OPTION_GAMMA -> 0.002731164984 | AG42: =[63]!OPTION_DELTA -> 0.4974612454 | AH42: =[63]!OPTION_MIDVOLATILITY -> 17.78412806 | AI42: =[63]!OPTION_ASKVOLATILITY -> 17.90772425 | AJ42: =[63]!OPTION_BIDVOLATILITY -> 17.66053187 | AK42: =[63]!OPTION_VOLATILITY -> 19.12537557 | AL42: =[63]!INTRINSICVALUE -> 0 | AM42: =[63]!TIMEVALUE -> 60 | AN42: =[63]!POSIVOL -> 274 | AO42: =[63]!TRADEVOLUME -> 73 | AP42: =[63]!ASKVOLUME1 -> 3 | AQ42: =[63]!ASKPRICE1 -> 56 | AR42: =[63]!BIDPRICE1 -> 55.2 | AS42: =[63]!BIDVOLUME1 -> 6 | AT42: =[63]!NETCHANGERATE -> +2.04% | AU42: =[63]!NETCHANGE -> 1.2 | AV42: =[63]!MTMPL2375314700 -> 0 | AW42: =[63]!NETVOLUME2375314700 -> 0 | AX42: =[63]!LASTPRICE -> 60 | AY42: 2325 | AZ42: =[64]!LASTPRICE -> 66.6 | BA42: =[64]!NETVOLUME2375314700 -> 0 | BB42: =[64]!MTMPL2375314700 -> 0 | BC42: =[64]!NETCHANGE -> -0.4 | BD42: =[64]!NETCHANGERATE -> -0.60% | BE42: =[64]!BIDVOLUME1 -> 2 | BF42: =[64]!BIDPRICE1 -> 66.4 | BG42: =[64]!ASKPRICE1 -> 67.6 | BH42: =[64]!ASKVOLUME1 -> 10 | BI42: =[64]!TRADEVOLUME -> 27 | BJ42: =[64]!POSIVOL -> 85 | BK42: =[64]!TIMEVALUE -> 51.4 | BL42: =[64]!INTRINSICVALUE -> 15.2 | BM42: =[64]!OPTION_VOLATILITY -> 19.44581013 | BN42: =[64]!OPTION_BIDVOLATILITY -> 19.39087849 | BO42: =[64]!OPTION_ASKVOLATILITY -> 19.75708942 | BP42: =[64]!OPTION_MIDVOLATILITY -> 19.57398396 | BQ42: =[64]!OPTION_DELTA -> -0.4998876225 | BR42: =[64]!OPTION_GAMMA -> 0.002481475898 | BS42: =[64]!OPTION_VEGA -> 3.276655687 | BT42: =[64]!OPTION_THETA -> -0.6300995511 | BU42: =[64]!OPTION_RHO -> -1.5420118 | BV42: =[64]!OPENPRICE -> 69.8 | BW42: =[64]!HIGH -> 69.8 | BX42: =[64]!LOW -> 64.6 | BY42: =[64]!UPPERLIMITPRICE -> 298.2 | BZ42: =[64]!LOWERLIMITPRICE -> 0.2 | CA42: =[64]!CLOSEPRICE ->  | CB42: =[64]!SETTLEPRICE ->  | CC42: =[64]!PRECLOSE -> 67 | CD42: =[64]!PRESETTLEPRICE -> 67 | CE42: CFFEX | CF42: HO | CG42: =[64]!INST_STATE -> 连续交易 | CH42: =[64]!UPDATETIME -> 10:48:54.400 | CI42: 100 | CJ42: 20240315
A43: 45320.45467 | B43: 19.23927628 | J43: 0.0002062118329 | K43: 2350 | L43: 33.2 | M43: 45.5 | N43: 20240315 | O43: 100 | P43: =[65]!UPDATETIME -> 10:48:55.900 | Q43: =[65]!INST_STATE -> 连续交易 | R43: HO | S43: CFFEX | T43: =[65]!PRESETTLEPRICE -> 48.4 | U43: =[65]!PRECLOSE -> 48.4 | V43: =[65]!SETTLEPRICE ->  | W43: =[65]!CLOSEPRICE ->  | X43: =[65]!LOWERLIMITPRICE -> 0.2 | Y43: =[65]!UPPERLIMITPRICE -> 279.6 | Z43: =[65]!LOW -> 46.8 | AA43: =[65]!HIGH -> 52 | AB43: =[65]!OPENPRICE -> 47.6 | AC43: =[65]!OPTION_RHO -> 1.201094126 | AD43: =[65]!OPTION_THETA -> -0.6854406471 | AE43: =[65]!OPTION_VEGA -> 3.228373004 | AF43: =[65]!OPTION_GAMMA -> 0.00265206411 | AG43: =[65]!OPTION_DELTA -> 0.4315976652 | AH43: =[65]!OPTION_MIDVOLATILITY -> 18.04505334 | AI43: =[65]!OPTION_ASKVOLATILITY -> 18.20069299 | AJ43: =[65]!OPTION_BIDVOLATILITY -> 17.8894137 | AK43: =[65]!OPTION_VOLATILITY -> 18.51197227 | AL43: =[65]!INTRINSICVALUE -> 0 | AM43: =[65]!TIMEVALUE -> 47 | AN43: =[65]!POSIVOL -> 857 | AO43: =[65]!TRADEVOLUME -> 115 | AP43: =[65]!ASKVOLUME1 -> 10 | AQ43: =[65]!ASKPRICE1 -> 46 | AR43: =[65]!BIDPRICE1 -> 45 | AS43: =[65]!BIDVOLUME1 -> 7 | AT43: =[65]!NETCHANGERATE -> -2.89% | AU43: =[65]!NETCHANGE -> -1.4 | AV43: =[65]!MTMPL2375314700 -> 0 | AW43: =[65]!NETVOLUME2375314700 -> 0 | AX43: =[65]!LASTPRICE -> 47 | AY43: 2350 | AZ43: =[66]!LASTPRICE -> 80.2 | BA43: =[66]!NETVOLUME2375314700 -> 0 | BB43: =[66]!MTMPL2375314700 -> 0 | BC43: =[66]!NETCHANGE -> -1 | BD43: =[66]!NETCHANGERATE -> -1.23% | BE43: =[66]!BIDVOLUME1 -> 3 | BF43: =[66]!BIDPRICE1 -> 81 | BG43: =[66]!ASKPRICE1 -> 82.8 | BH43: =[66]!ASKVOLUME1 -> 13 | BI43: =[66]!TRADEVOLUME -> 25 | BJ43: =[66]!POSIVOL -> 288 | BK43: =[66]!TIMEVALUE -> 40 | BL43: =[66]!INTRINSICVALUE -> 40.2 | BM43: =[66]!OPTION_VOLATILITY -> 19.3542574 | BN43: =[66]!OPTION_BIDVOLATILITY -> 19.5922945 | BO43: =[66]!OPTION_ASKVOLATILITY -> 20.15076616 | BP43: =[66]!OPTION_MIDVOLATILITY -> 19.87153033 | BQ43: =[66]!OPTION_DELTA -> -0.5597298982 | BR43: =[66]!OPTION_GAMMA -> 0.002416871898 | BS43: =[66]!OPTION_VEGA -> 3.239861645 | BT43: =[66]!OPTION_THETA -> -0.6243478172 | BU43: =[66]!OPTION_RHO -> -1.73525246 | BV43: =[66]!OPENPRICE -> 80.8 | BW43: =[66]!HIGH -> 81.8 | BX43: =[66]!LOW -> 77 | BY43: =[66]!UPPERLIMITPRICE -> 312.4 | BZ43: =[66]!LOWERLIMITPRICE -> 0.2 | CA43: =[66]!CLOSEPRICE ->  | CB43: =[66]!SETTLEPRICE ->  | CC43: =[66]!PRECLOSE -> 77.2 | CD43: =[66]!PRESETTLEPRICE -> 81.2 | CE43: CFFEX | CF43: HO | CG43: =[66]!INST_STATE -> 连续交易 | CH43: =[66]!UPDATETIME -> 10:48:52.900 | CI43: 100 | CJ43: 20240315
A44: 45320.45478 | B44: 19.24027573 | J44: 0.0001641770344 | K44: 2375 | L44: 59 | M44: 37 | N44: 20240315 | O44: 100 | P44: =[67]!UPDATETIME -> 10:48:57.400 | Q44: =[67]!INST_STATE -> 连续交易 | R44: HO | S44: CFFEX | T44: =[67]!PRESETTLEPRICE -> 39.4 | U44: =[67]!PRECLOSE -> 39.4 | V44: =[67]!SETTLEPRICE ->  | W44: =[67]!CLOSEPRICE ->  | X44: =[67]!LOWERLIMITPRICE -> 0.2 | Y44: =[67]!UPPERLIMITPRICE -> 270.6 | Z44: =[67]!LOW -> 37.4 | AA44: =[67]!HIGH -> 42.4 | AB44: =[67]!OPENPRICE -> 38.8 | AC44: =[67]!OPTION_RHO -> 1.034552881 | AD44: =[67]!OPTION_THETA -> -0.6613041904 | AE44: =[67]!OPTION_VEGA -> 3.103654517 | AF44: =[67]!OPTION_GAMMA -> 0.002517435895 | AG44: =[67]!OPTION_DELTA -> 0.3707390085 | AH44: =[67]!OPTION_MIDVOLATILITY -> 18.26935754 | AI44: =[67]!OPTION_ASKVOLATILITY -> 18.46619591 | AJ44: =[67]!OPTION_BIDVOLATILITY -> 18.07251916 | AK44: =[67]!OPTION_VOLATILITY -> 18.402109 | AL44: =[67]!INTRINSICVALUE -> 0 | AM44: =[67]!TIMEVALUE -> 37.4 | AN44: =[67]!POSIVOL -> 425 | AO44: =[67]!TRADEVOLUME -> 109 | AP44: =[67]!ASKVOLUME1 -> 15 | AQ44: =[67]!ASKPRICE1 -> 37.6 | AR44: =[67]!BIDPRICE1 -> 36.4 | AS44: =[67]!BIDVOLUME1 -> 6 | AT44: =[67]!NETCHANGERATE -> -5.08% | AU44: =[67]!NETCHANGE -> -2 | AV44: =[67]!MTMPL2375314700 -> 0 | AW44: =[67]!NETVOLUME2375314700 -> 0 | AX44: =[67]!LASTPRICE -> 37.4 | AY44: 2375 | AZ44: =[68]!LASTPRICE -> 96.4 | BA44: =[68]!NETVOLUME2375314700 -> 0 | BB44: =[68]!MTMPL2375314700 -> 0 | BC44: =[68]!NETCHANGE -> -1.4 | BD44: =[68]!NETCHANGERATE -> -1.43% | BE44: =[68]!BIDVOLUME1 -> 15 | BF44: =[68]!BIDPRICE1 -> 97.2 | BG44: =[68]!ASKPRICE1 -> 98.8 | BH44: =[68]!ASKVOLUME1 -> 6 | BI44: =[68]!TRADEVOLUME -> 14 | BJ44: =[68]!POSIVOL -> 105 | BK44: =[68]!TIMEVALUE -> 31.2 | BL44: =[68]!INTRINSICVALUE -> 65.2 | BM44: =[68]!OPTION_VOLATILITY -> 19.67469196 | BN44: =[68]!OPTION_BIDVOLATILITY -> 19.93103961 | BO44: =[68]!OPTION_ASKVOLATILITY -> 20.43457963 | BP44: =[68]!OPTION_MIDVOLATILITY -> 20.18280962 | BQ44: =[68]!OPTION_DELTA -> -0.6149139096 | BR44: =[68]!OPTION_GAMMA -> 0.002305678632 | BS44: =[68]!OPTION_VEGA -> 3.140306765 | BT44: =[68]!OPTION_THETA -> -0.6055782521 | BU44: =[68]!OPTION_RHO -> -1.916753619 | BV44: =[68]!OPENPRICE -> 97.8 | BW44: =[68]!HIGH -> 97.8 | BX44: =[68]!LOW -> 96 | BY44: =[68]!UPPERLIMITPRICE -> 329 | BZ44: =[68]!LOWERLIMITPRICE -> 0.2 | CA44: =[68]!CLOSEPRICE ->  | CB44: =[68]!SETTLEPRICE ->  | CC44: =[68]!PRECLOSE -> 97.8 | CD44: =[68]!PRESETTLEPRICE -> 97.8 | CE44: CFFEX | CF44: HO | CG44: =[68]!INST_STATE -> 连续交易 | CH44: =[68]!UPDATETIME -> 10:48:54.900 | CI44: 100 | CJ44: 20240315
J45: 0.000132530326 | K45: 2400 | L45: 80.6 | M45: 30.5 | N45: 20240315 | O45: 100 | P45: =[69]!UPDATETIME -> 10:48:57.400 | Q45: =[69]!INST_STATE -> 连续交易 | R45: HO | S45: CFFEX | T45: =[69]!PRESETTLEPRICE -> 32.6 | U45: =[69]!PRECLOSE -> 32.6 | V45: =[69]!SETTLEPRICE ->  | W45: =[69]!CLOSEPRICE ->  | X45: =[69]!LOWERLIMITPRICE -> 0.2 | Y45: =[69]!UPPERLIMITPRICE -> 263.8 | Z45: =[69]!LOW -> 30.8 | AA45: =[69]!HIGH -> 34 | AB45: =[69]!OPENPRICE -> 32 | AC45: =[69]!OPTION_RHO -> 0.885283145 | AD45: =[69]!OPTION_THETA -> -0.6349280259 | AE45: =[69]!OPTION_VEGA -> 2.925090049 | AF45: =[69]!OPTION_GAMMA -> 0.002310649479 | AG45: =[69]!OPTION_DELTA -> 0.3167509109 | AH45: =[69]!OPTION_MIDVOLATILITY -> 18.75916465 | AI45: =[69]!OPTION_ASKVOLATILITY -> 18.93311484 | AJ45: =[69]!OPTION_BIDVOLATILITY -> 18.58521446 | AK45: =[69]!OPTION_VOLATILITY -> 18.93311484 | AL45: =[69]!INTRINSICVALUE -> 0 | AM45: =[69]!TIMEVALUE -> 31 | AN45: =[69]!POSIVOL -> 1682 | AO45: =[69]!TRADEVOLUME -> 240 | AP45: =[69]!ASKVOLUME1 -> 13 | AQ45: =[69]!ASKPRICE1 -> 31 | AR45: =[69]!BIDPRICE1 -> 30 | AS45: =[69]!BIDVOLUME1 -> 6 | AT45: =[69]!NETCHANGERATE -> -4.91% | AU45: =[69]!NETCHANGE -> -1.6 | AV45: =[69]!MTMPL2375314700 -> 0 | AW45: =[69]!NETVOLUME2375314700 -> 0 | AX45: =[69]!LASTPRICE -> 31 | AY45: 2400 | AZ45: =[70]!LASTPRICE -> 111.6 | BA45: =[70]!NETVOLUME2375314700 -> 0 | BB45: =[70]!MTMPL2375314700 -> 0 | BC45: =[70]!NETCHANGE -> -3.6 | BD45: =[70]!NETCHANGERATE -> -3.13% | BE45: =[70]!BIDVOLUME1 -> 6 | BF45: =[70]!BIDPRICE1 -> 115.6 | BG45: =[70]!ASKPRICE1 -> 117.4 | BH45: =[70]!ASKVOLUME1 -> 6 | BI45: =[70]!TRADEVOLUME -> 5 | BJ45: =[70]!POSIVOL -> 313 | BK45: =[70]!TIMEVALUE -> 21.4 | BL45: =[70]!INTRINSICVALUE -> 90.2 | BM45: =[70]!OPTION_VOLATILITY -> 19.14368612 | BN45: =[70]!OPTION_BIDVOLATILITY -> 20.48951127 | BO45: =[70]!OPTION_ASKVOLATILITY -> 21.0937593 | BP45: =[70]!OPTION_MIDVOLATILITY -> 20.79163528 | BQ45: =[70]!OPTION_DELTA -> -0.6639733115 | BR45: =[70]!OPTION_GAMMA -> 0.002135554742 | BS45: =[70]!OPTION_VEGA -> 2.996339594 | BT45: =[70]!OPTION_THETA -> -0.5865897888 | BU45: =[70]!OPTION_RHO -> -2.083134885 | BV45: =[70]!OPENPRICE -> 118.2 | BW45: =[70]!HIGH -> 118.6 | BX45: =[70]!LOW -> 111.6 | BY45: =[70]!UPPERLIMITPRICE -> 346.4 | BZ45: =[70]!LOWERLIMITPRICE -> 0.2 | CA45: =[70]!CLOSEPRICE ->  | CB45: =[70]!SETTLEPRICE ->  | CC45: =[70]!PRECLOSE -> 124 | CD45: =[70]!PRESETTLEPRICE -> 115.2 | CE45: CFFEX | CF45: HO | CG45: =[70]!INST_STATE -> 连续交易 | CH45: =[70]!UPDATETIME -> 10:48:53.400 | CI45: 100 | CJ45: 20240315
J46: 0.0001055519122 | K46: 2425 | L46: 107 | M46: 24.8 | N46: 20240315 | O46: 100 | P46: =[71]!UPDATETIME -> 10:48:54.400 | Q46: =[71]!INST_STATE -> 连续交易 | R46: HO | S46: CFFEX | T46: =[71]!PRESETTLEPRICE -> 27 | U46: =[71]!PRECLOSE -> 28 | V46: =[71]!SETTLEPRICE ->  | W46: =[71]!CLOSEPRICE ->  | X46: =[71]!LOWERLIMITPRICE -> 0.2 | Y46: =[71]!UPPERLIMITPRICE -> 258.2 | Z46: =[71]!LOW -> 25.2 | AA46: =[71]!HIGH -> 27.4 | AB46: =[71]!OPENPRICE -> 27.4 | AC46: =[71]!OPTION_RHO -> 0.7498515226 | AD46: =[71]!OPTION_THETA -> -0.5947175586 | AE46: =[71]!OPTION_VEGA -> 2.705273769 | AF46: =[71]!OPTION_GAMMA -> 0.002097092167 | AG46: =[71]!OPTION_DELTA -> 0.2678450951 | AH46: =[71]!OPTION_MIDVOLATILITY -> 19.1162203 | AI46: =[71]!OPTION_ASKVOLATILITY -> 19.26270467 | AJ46: =[71]!OPTION_BIDVOLATILITY -> 18.96973593 | AK46: =[71]!OPTION_VOLATILITY -> 19.70215778 | AL46: =[71]!INTRINSICVALUE -> 0 | AM46: =[71]!TIMEVALUE -> 26.4 | AN46: =[71]!POSIVOL -> 278 | AO46: =[71]!TRADEVOLUME -> 48 | AP46: =[71]!ASKVOLUME1 -> 8 | AQ46: =[71]!ASKPRICE1 -> 25.2 | AR46: =[71]!BIDPRICE1 -> 24.4 | AS46: =[71]!BIDVOLUME1 -> 18 | AT46: =[71]!NETCHANGERATE -> -2.22% | AU46: =[71]!NETCHANGE -> -0.6 | AV46: =[71]!MTMPL2375314700 -> 0 | AW46: =[71]!NETVOLUME2375314700 -> 0 | AX46: =[71]!LASTPRICE -> 26.4 | AY46: 2425 | AZ46: =[72]!LASTPRICE -> 133.4 | BA46: =[72]!NETVOLUME2375314700 -> 0 | BB46: =[72]!MTMPL2375314700 -> 0 | BC46: =[72]!NETCHANGE -> -0.6 | BD46: =[72]!NETCHANGERATE -> -0.45% | BE46: =[72]!BIDVOLUME1 -> 6 | BF46: =[72]!BIDPRICE1 -> 134.8 | BG46: =[72]!ASKPRICE1 -> 136.8 | BH46: =[72]!ASKVOLUME1 -> 6 | BI46: =[72]!TRADEVOLUME -> 4 | BJ46: =[72]!POSIVOL -> 19 | BK46: =[72]!TIMEVALUE -> 18.2 | BL46: =[72]!INTRINSICVALUE -> 115.2 | BM46: =[72]!OPTION_VOLATILITY -> 20.47120072 | BN46: =[72]!OPTION_BIDVOLATILITY -> 20.96558547 | BO46: =[72]!OPTION_ASKVOLATILITY -> 21.67969678 | BP46: =[72]!OPTION_MIDVOLATILITY -> 21.32264113 | BQ46: =[72]!OPTION_DELTA -> -0.7080948013 | BR46: =[72]!OPTION_GAMMA -> 0.001960216802 | BS46: =[72]!OPTION_VEGA -> 2.820569344 | BT46: =[72]!OPTION_THETA -> -0.5564936078 | BU46: =[72]!OPTION_RHO -> -2.236144014 | BV46: =[72]!OPENPRICE -> 133.6 | BW46: =[72]!HIGH -> 135.4 | BX46: =[72]!LOW -> 133.2 | BY46: =[72]!UPPERLIMITPRICE -> 365.2 | BZ46: =[72]!LOWERLIMITPRICE -> 0.2 | CA46: =[72]!CLOSEPRICE ->  | CB46: =[72]!SETTLEPRICE ->  | CC46: =[72]!PRECLOSE -> 214.4 | CD46: =[72]!PRESETTLEPRICE -> 134 | CE46: CFFEX | CF46: HO | CG46: =[72]!INST_STATE -> 连续交易 | CH46: =[72]!UPDATETIME -> 10:48:53.400 | CI46: 100 | CJ46: 20240315
J47: 8.506206256e-05 | K47: 2450 | L47: 134.2 | M47: 20.4 | N47: 20240315 | O47: 100 | P47: =[73]!UPDATETIME -> 10:48:52.900 | Q47: =[73]!INST_STATE -> 连续交易 | R47: HO | S47: CFFEX | T47: =[73]!PRESETTLEPRICE -> 22.6 | U47: =[73]!PRECLOSE -> 22 | V47: =[73]!SETTLEPRICE ->  | W47: =[73]!CLOSEPRICE ->  | X47: =[73]!LOWERLIMITPRICE -> 0.2 | Y47: =[73]!UPPERLIMITPRICE -> 253.8 | Z47: =[73]!LOW -> 20.4 | AA47: =[73]!HIGH -> 22.6 | AB47: =[73]!OPENPRICE -> 22.2 | AC47: =[73]!OPTION_RHO -> 0.6363847971 | AD47: =[73]!OPTION_THETA -> -0.5534748704 | AE47: =[73]!OPTION_VEGA -> 2.476561758 | AF47: =[73]!OPTION_GAMMA -> 0.001877881237 | AG47: =[73]!OPTION_DELTA -> 0.2269753809 | AH47: =[73]!OPTION_MIDVOLATILITY -> 19.53278523 | AI47: =[73]!OPTION_ASKVOLATILITY -> 19.69300251 | AJ47: =[73]!OPTION_BIDVOLATILITY -> 19.37256795 | AK47: =[73]!OPTION_VOLATILITY -> 20.01343707 | AL47: =[73]!INTRINSICVALUE -> 0 | AM47: =[73]!TIMEVALUE -> 21.6 | AN47: =[73]!POSIVOL -> 1069 | AO47: =[73]!TRADEVOLUME -> 216 | AP47: =[73]!ASKVOLUME1 -> 6 | AQ47: =[73]!ASKPRICE1 -> 20.8 | AR47: =[73]!BIDPRICE1 -> 20 | AS47: =[73]!BIDVOLUME1 -> 44 | AT47: =[73]!NETCHANGERATE -> -4.42% | AU47: =[73]!NETCHANGE -> -1 | AV47: =[73]!MTMPL2375314700 -> 0 | AW47: =[73]!NETVOLUME2375314700 -> 0 | AX47: =[73]!LASTPRICE -> 21.6 | AY47: 2450 | AZ47: =[74]!LASTPRICE -> 155.8 | BA47: =[74]!NETVOLUME2375314700 -> 0 | BB47: =[74]!MTMPL2375314700 -> 0 | BC47: =[74]!NETCHANGE -> 1.6 | BD47: =[74]!NETCHANGERATE -> +1.04% | BE47: =[74]!BIDVOLUME1 -> 1 | BF47: =[74]!BIDPRICE1 -> 155.6 | BG47: =[74]!ASKPRICE1 -> 156 | BH47: =[74]!ASKVOLUME1 -> 1 | BI47: =[74]!TRADEVOLUME -> 14 | BJ47: =[74]!POSIVOL -> 221 | BK47: =[74]!TIMEVALUE -> 15.6 | BL47: =[74]!INTRINSICVALUE -> 140.2 | BM47: =[74]!OPTION_VOLATILITY -> 21.93604443 | BN47: =[74]!OPTION_BIDVOLATILITY -> 21.86280224 | BO47: =[74]!OPTION_ASKVOLATILITY -> 22.00928661 | BP47: =[74]!OPTION_MIDVOLATILITY -> 21.93604443 | BQ47: =[74]!OPTION_DELTA -> -0.744968273 | BR47: =[74]!OPTION_GAMMA -> 0.001781620125 | BS47: =[74]!OPTION_VEGA -> 2.638701668 | BT47: =[74]!OPTION_THETA -> -0.5261408137 | BU47: =[74]!OPTION_RHO -> -2.369430561 | BV47: =[74]!OPENPRICE -> 153.6 | BW47: =[74]!HIGH -> 156.2 | BX47: =[74]!LOW -> 150.2 | BY47: =[74]!UPPERLIMITPRICE -> 385.4 | BZ47: =[74]!LOWERLIMITPRICE -> 0.2 | CA47: =[74]!CLOSEPRICE ->  | CB47: =[74]!SETTLEPRICE ->  | CC47: =[74]!PRECLOSE -> 165.2 | CD47: =[74]!PRESETTLEPRICE -> 154.2 | CE47: CFFEX | CF47: HO | CG47: =[74]!INST_STATE -> 连续交易 | CH47: =[74]!UPDATETIME -> 10:48:52.400 | CI47: 100 | CJ47: 20240315
J48: 6.864308374e-05 | K48: 2475 | L48: 158.2 | M48: 16.8 | N48: 20240315 | O48: 100 | P48: =[75]!UPDATETIME -> 10:48:55.400 | Q48: =[75]!INST_STATE -> 连续交易 | R48: HO | S48: CFFEX | T48: =[75]!PRESETTLEPRICE -> 18.6 | U48: =[75]!PRECLOSE -> 18.6 | V48: =[75]!SETTLEPRICE ->  | W48: =[75]!CLOSEPRICE ->  | X48: =[75]!LOWERLIMITPRICE -> 0.2 | Y48: =[75]!UPPERLIMITPRICE -> 249.8 | Z48: =[75]!LOW -> 16.8 | AA48: =[75]!HIGH -> 18.4 | AB48: =[75]!OPENPRICE -> 18.4 | AC48: =[75]!OPTION_RHO -> 0.5370205488 | AD48: =[75]!OPTION_THETA -> -0.5107370538 | AE48: =[75]!OPTION_VEGA -> 2.23945661 | AF48: =[75]!OPTION_GAMMA -> 0.001656839877 | AG48: =[75]!OPTION_DELTA -> 0.1913717208 | AH48: =[75]!OPTION_MIDVOLATILITY -> 20.02259234 | AI48: =[75]!OPTION_ASKVOLATILITY -> 20.19654253 | AJ48: =[75]!OPTION_BIDVOLATILITY -> 19.84864215 | AK48: =[75]!OPTION_VOLATILITY -> 20.72754837 | AL48: =[75]!INTRINSICVALUE -> 0 | AM48: =[75]!TIMEVALUE -> 18.4 | AN48: =[75]!POSIVOL -> 327 | AO48: =[75]!TRADEVOLUME -> 88 | AP48: =[75]!ASKVOLUME1 -> 18 | AQ48: =[75]!ASKPRICE1 -> 17.2 | AR48: =[75]!BIDPRICE1 -> 16.4 | AS48: =[75]!BIDVOLUME1 -> 30 | AT48: =[75]!NETCHANGERATE -> -1.08% | AU48: =[75]!NETCHANGE -> -0.2 | AV48: =[75]!MTMPL2375314700 -> 0 | AW48: =[75]!NETVOLUME2375314700 -> 0 | AX48: =[75]!LASTPRICE -> 18.4 | AY48: 2475 | AZ48: =[76]!LASTPRICE -> 176.6 | BA48: =[76]!NETVOLUME2375314700 -> 0 | BB48: =[76]!MTMPL2375314700 -> 0 | BC48: =[76]!NETCHANGE -> 2.2 | BD48: =[76]!NETCHANGERATE -> +1.26% | BE48: =[76]!BIDVOLUME1 -> 6 | BF48: =[76]!BIDPRICE1 -> 176.2 | BG48: =[76]!ASKPRICE1 -> 178.6 | BH48: =[76]!ASKVOLUME1 -> 19 | BI48: =[76]!TRADEVOLUME -> 25 | BJ48: =[76]!POSIVOL -> 34 | BK48: =[76]!TIMEVALUE -> 11.4 | BL48: =[76]!INTRINSICVALUE -> 165.2 | BM48: =[76]!OPTION_VOLATILITY -> 22.33887644 | BN48: =[76]!OPTION_BIDVOLATILITY -> 22.17408153 | BO48: =[76]!OPTION_ASKVOLATILITY -> 23.16285102 | BP48: =[76]!OPTION_MIDVOLATILITY -> 22.66846628 | BQ48: =[76]!OPTION_DELTA -> -0.7770082066 | BR48: =[76]!OPTION_GAMMA -> 0.001602099203 | BS48: =[76]!OPTION_VEGA -> 2.451621098 | BT48: =[76]!OPTION_THETA -> -0.4958133905 | BU48: =[76]!OPTION_RHO -> -2.489914584 | BV48: =[76]!OPENPRICE -> 175 | BW48: =[76]!HIGH -> 176.6 | BX48: =[76]!LOW -> 169.8 | BY48: =[76]!UPPERLIMITPRICE -> 405.6 | BZ48: =[76]!LOWERLIMITPRICE -> 0.2 | CA48: =[76]!CLOSEPRICE ->  | CB48: =[76]!SETTLEPRICE ->  | CC48: =[76]!PRECLOSE -> 270.8 | CD48: =[76]!PRESETTLEPRICE -> 174.4 | CE48: CFFEX | CF48: HO | CG48: =[76]!INST_STATE -> 连续交易 | CH48: =[76]!UPDATETIME -> 10:48:52.900 | CI48: 100 | CJ48: 20240315
J49: 8.589842278e-05 | K49: 2500 | L49: 184.4 | M49: 14.3 | N49: 20240315 | O49: 100 | P49: =[77]!UPDATETIME -> 10:48:55.900 | Q49: =[77]!INST_STATE -> 连续交易 | R49: HO | S49: CFFEX | T49: =[77]!PRESETTLEPRICE -> 15.4 | U49: =[77]!PRECLOSE -> 15.4 | V49: =[77]!SETTLEPRICE ->  | W49: =[77]!CLOSEPRICE ->  | X49: =[77]!LOWERLIMITPRICE -> 0.2 | Y49: =[77]!UPPERLIMITPRICE -> 246.6 | Z49: =[77]!LOW -> 14.2 | AA49: =[77]!HIGH -> 15.4 | AB49: =[77]!OPENPRICE -> 15.2 | AC49: =[77]!OPTION_RHO -> 0.4620378187 | AD49: =[77]!OPTION_THETA -> -0.4768964144 | AE49: =[77]!OPTION_VEGA -> 2.036553971 | AF49: =[77]!OPTION_GAMMA -> 0.00146067458 | AG49: =[77]!OPTION_DELTA -> 0.1645185518 | AH49: =[77]!OPTION_MIDVOLATILITY -> 20.63599564 | AI49: =[77]!OPTION_ASKVOLATILITY -> 20.78248001 | AJ49: =[77]!OPTION_BIDVOLATILITY -> 20.48951127 | AK49: =[77]!OPTION_VOLATILITY -> 20.67261673 | AL49: =[77]!INTRINSICVALUE -> 0 | AM49: =[77]!TIMEVALUE -> 14.4 | AN49: =[77]!POSIVOL -> 1380 | AO49: =[77]!TRADEVOLUME -> 187 | AP49: =[77]!ASKVOLUME1 -> 18 | AQ49: =[77]!ASKPRICE1 -> 14.6 | AR49: =[77]!BIDPRICE1 -> 14 | AS49: =[77]!BIDVOLUME1 -> 10 | AT49: =[77]!NETCHANGERATE -> -6.49% | AU49: =[77]!NETCHANGE -> -1 | AV49: =[77]!MTMPL2375314700 -> 0 | AW49: =[77]!NETVOLUME2375314700 -> 0 | AX49: =[77]!LASTPRICE -> 14.4 | AY49: 2500 | AZ49: =[78]!LASTPRICE -> 198.8 | BA49: =[78]!NETVOLUME2375314700 -> 0 | BB49: =[78]!MTMPL2375314700 -> 0 | BC49: =[78]!NETCHANGE -> 2 | BD49: =[78]!NETCHANGERATE -> +1.02% | BE49: =[78]!BIDVOLUME1 -> 6 | BF49: =[78]!BIDPRICE1 -> 198.4 | BG49: =[78]!ASKPRICE1 -> 199.4 | BH49: =[78]!ASKVOLUME1 -> 1 | BI49: =[78]!TRADEVOLUME -> 26 | BJ49: =[78]!POSIVOL -> 457 | BK49: =[78]!TIMEVALUE -> 8.6 | BL49: =[78]!INTRINSICVALUE -> 190.2 | BM49: =[78]!OPTION_VOLATILITY -> 23.49244086 | BN49: =[78]!OPTION_BIDVOLATILITY -> 23.30933539 | BO49: =[78]!OPTION_ASKVOLATILITY -> 23.74878851 | BP49: =[78]!OPTION_MIDVOLATILITY -> 23.52906195 | BQ49: =[78]!OPTION_DELTA -> -0.801336068 | BR49: =[78]!OPTION_GAMMA -> 0.001441726947 | BS49: =[78]!OPTION_VEGA -> 2.29194744 | BT49: =[78]!OPTION_THETA -> -0.4736022959 | BU49: =[78]!OPTION_RHO -> -2.588990546 | BV49: =[78]!OPENPRICE -> 196.6 | BW49: =[78]!HIGH -> 199.6 | BX49: =[78]!LOW -> 190 | BY49: =[78]!UPPERLIMITPRICE -> 428 | BZ49: =[78]!LOWERLIMITPRICE -> 0.2 | CA49: =[78]!CLOSEPRICE ->  | CB49: =[78]!SETTLEPRICE ->  | CC49: =[78]!PRECLOSE -> 199.4 | CD49: =[78]!PRESETTLEPRICE -> 196.8 | CE49: CFFEX | CF49: HO | CG49: =[78]!INST_STATE -> 连续交易 | CH49: =[78]!UPDATETIME -> 10:48:52.900 | CI49: 100 | CJ49: 20240315
J50: 7.929115972e-05 | K50: 2550 | L50: 233.6 | M50: 10.3 | N50: 20240315 | O50: 100 | P50: =[79]!UPDATETIME -> 10:48:50.900 | Q50: =[79]!INST_STATE -> 连续交易 | R50: HO | S50: CFFEX | T50: =[79]!PRESETTLEPRICE -> 11.2 | U50: =[79]!PRECLOSE -> 11.2 | V50: =[79]!SETTLEPRICE ->  | W50: =[79]!CLOSEPRICE ->  | X50: =[79]!LOWERLIMITPRICE -> 0.2 | Y50: =[79]!UPPERLIMITPRICE -> 242.4 | Z50: =[79]!LOW -> 9.4 | AA50: =[79]!HIGH -> 11.4 | AB50: =[79]!OPENPRICE -> 11.4 | AC50: =[79]!OPTION_RHO -> 0.3377309632 | AD50: =[79]!OPTION_THETA -> -0.4061582921 | AE50: =[79]!OPTION_VEGA -> 1.645969261 | AF50: =[79]!OPTION_GAMMA -> 0.001113840175 | AG50: =[79]!OPTION_DELTA -> 0.1202115628 | AH50: =[79]!OPTION_MIDVOLATILITY -> 21.88111279 | AI50: =[79]!OPTION_ASKVOLATILITY -> 22.06421825 | AJ50: =[79]!OPTION_BIDVOLATILITY -> 21.69800732 | AK50: =[79]!OPTION_VOLATILITY -> 22.06421825 | AL50: =[79]!INTRINSICVALUE -> 0 | AM50: =[79]!TIMEVALUE -> 10.6 | AN50: =[79]!POSIVOL -> 265 | AO50: =[79]!TRADEVOLUME -> 107 | AP50: =[79]!ASKVOLUME1 -> 12 | AQ50: =[79]!ASKPRICE1 -> 10.6 | AR50: =[79]!BIDPRICE1 -> 10 | AS50: =[79]!BIDVOLUME1 -> 24 | AT50: =[79]!NETCHANGERATE -> -5.36% | AU50: =[79]!NETCHANGE -> -0.6 | AV50: =[79]!MTMPL2375314700 -> 0 | AW50: =[79]!NETVOLUME2375314700 -> 0 | AX50: =[79]!LASTPRICE -> 10.6 | AY50: 2550 | AZ50: =[80]!LASTPRICE -> 244.2 | BA50: =[80]!NETVOLUME2375314700 -> 0 | BB50: =[80]!MTMPL2375314700 -> 0 | BC50: =[80]!NETCHANGE -> 1.6 | BD50: =[80]!NETCHANGERATE -> +0.66% | BE50: =[80]!BIDVOLUME1 -> 6 | BF50: =[80]!BIDPRICE1 -> 244.2 | BG50: =[80]!ASKPRICE1 -> 246.6 | BH50: =[80]!ASKVOLUME1 -> 6 | BI50: =[80]!TRADEVOLUME -> 12 | BJ50: =[80]!POSIVOL -> 37 | BK50: =[80]!TIMEVALUE -> 4 | BL50: =[80]!INTRINSICVALUE -> 240.2 | BM50: =[80]!OPTION_VOLATILITY -> 24.79248964 | BN50: =[80]!OPTION_BIDVOLATILITY -> 24.79248964 | BO50: =[80]!OPTION_ASKVOLATILITY -> 26.0009857 | BP50: =[80]!OPTION_MIDVOLATILITY -> 25.39673767 | BQ50: =[80]!OPTION_DELTA -> -0.8412983047 | BR50: =[80]!OPTION_GAMMA -> 0.001159587463 | BS50: =[80]!OPTION_VEGA -> 1.988890537 | BT50: =[80]!OPTION_THETA -> -0.4288765882 | BU50: =[80]!OPTION_RHO -> -2.763671301 | BV50: =[80]!OPENPRICE -> 243.2 | BW50: =[80]!HIGH -> 245.6 | BX50: =[80]!LOW -> 239.8 | BY50: =[80]!UPPERLIMITPRICE -> 473.8 | BZ50: =[80]!LOWERLIMITPRICE -> 11.4 | CA50: =[80]!CLOSEPRICE ->  | CB50: =[80]!SETTLEPRICE ->  | CC50: =[80]!PRECLOSE -> 239.4 | CD50: =[80]!PRESETTLEPRICE -> 242.6 | CE50: CFFEX | CF50: HO | CG50: =[80]!INST_STATE -> 连续交易 | CH50: =[80]!UPDATETIME -> 10:48:53.400 | CI50: 100 | CJ50: 20240315
J51: 8.885921171e-05 | K51: 2600 | L51: 278 | M51: 8 | N51: 20240315 | O51: 100 | P51: =[81]!UPDATETIME -> 10:48:57.400 | Q51: =[81]!INST_STATE -> 连续交易 | R51: HO | S51: CFFEX | T51: =[81]!PRESETTLEPRICE -> 8.8 | U51: =[81]!PRECLOSE -> 8.8 | V51: =[81]!SETTLEPRICE ->  | W51: =[81]!CLOSEPRICE ->  | X51: =[81]!LOWERLIMITPRICE -> 0.2 | Y51: =[81]!UPPERLIMITPRICE -> 240 | Z51: =[81]!LOW -> 7.2 | AA51: =[81]!HIGH -> 8.6 | AB51: =[81]!OPENPRICE -> 8.6 | AC51: =[81]!OPTION_RHO -> 0.2589327023 | AD51: =[81]!OPTION_THETA -> -0.3568429474 | AE51: =[81]!OPTION_VEGA -> 1.358658705 | AF51: =[81]!OPTION_GAMMA -> 0.0008598518795 | AG51: =[81]!OPTION_DELTA -> 0.09221244785 | AH51: =[81]!OPTION_MIDVOLATILITY -> 23.40088813 | AI51: =[81]!OPTION_ASKVOLATILITY -> 23.5473725 | AJ51: =[81]!OPTION_BIDVOLATILITY -> 23.25440376 | AK51: =[81]!OPTION_VOLATILITY -> 23.40088813 | AL51: =[81]!INTRINSICVALUE -> 0 | AM51: =[81]!TIMEVALUE -> 8 | AN51: =[81]!POSIVOL -> 1456 | AO51: =[81]!TRADEVOLUME -> 78 | AP51: =[81]!ASKVOLUME1 -> 6 | AQ51: =[81]!ASKPRICE1 -> 8.2 | AR51: =[81]!BIDPRICE1 -> 7.8 | AS51: =[81]!BIDVOLUME1 -> 4 | AT51: =[81]!NETCHANGERATE -> -9.09% | AU51: =[81]!NETCHANGE -> -0.8 | AV51: =[81]!MTMPL2375314700 -> 0 | AW51: =[81]!NETVOLUME2375314700 -> 0 | AX51: =[81]!LASTPRICE -> 8 | AY51: 2600 | AZ51: =[82]!LASTPRICE -> 286 | BA51: =[82]!NETVOLUME2375314700 -> 0 | BB51: =[82]!MTMPL2375314700 -> 0 | BC51: =[82]!NETCHANGE -> -3.4 | BD51: =[82]!NETCHANGERATE -> -1.17% | BE51: =[82]!BIDVOLUME1 -> 6 | BF51: =[82]!BIDPRICE1 -> 292 | BG51: =[82]!ASKPRICE1 -> 294.6 | BH51: =[82]!ASKVOLUME1 -> 6 | BI51: =[82]!TRADEVOLUME -> 2 | BJ51: =[82]!POSIVOL -> 291 | BK51: =[82]!TIMEVALUE -> -4.2 | BL51: =[82]!INTRINSICVALUE -> 290.2 | BM51: =[82]!OPTION_VOLATILITY -> 22.85157174 | BN51: =[82]!OPTION_BIDVOLATILITY -> 26.82496028 | BO51: =[82]!OPTION_ASKVOLATILITY -> 28.30811453 | BP51: =[82]!OPTION_MIDVOLATILITY -> 27.5665374 | BQ51: =[82]!OPTION_DELTA -> -0.8671496216 | BR51: =[82]!OPTION_GAMMA -> 0.0009479746984 | BS51: =[82]!OPTION_VEGA -> 1.764547505 | BT51: =[82]!OPTION_THETA -> -0.4026692707 | BU51: =[82]!OPTION_RHO -> -2.899223 | BV51: =[82]!OPENPRICE -> 286 | BW51: =[82]!HIGH -> 286 | BX51: =[82]!LOW -> 286 | BY51: =[82]!UPPERLIMITPRICE -> 520.6 | BZ51: =[82]!LOWERLIMITPRICE -> 58.2 | CA51: =[82]!CLOSEPRICE ->  | CB51: =[82]!SETTLEPRICE ->  | CC51: =[82]!PRECLOSE -> 283.8 | CD51: =[82]!PRESETTLEPRICE -> 289.4 | CE51: CFFEX | CF51: HO | CG51: =[82]!INST_STATE -> 连续交易 | CH51: =[82]!UPDATETIME -> 10:48:52.400 | CI51: 100 | CJ51: 20240315
J52: =((K52-K51)/2)*M52*EXP($H$8*$H$12)/K52^2 -> 3.639286508e-05 | K52: 2700 | L52: 383.6 | M52: 5.3 | N52: 20240315 | O52: 100 | P52: =[83]!UPDATETIME -> 10:48:52.900 | Q52: =[83]!INST_STATE -> 连续交易 | R52: HO | S52: CFFEX | T52: =[83]!PRESETTLEPRICE -> 5.4 | U52: =[83]!PRECLOSE -> 5.4 | V52: =[83]!SETTLEPRICE ->  | W52: =[83]!CLOSEPRICE ->  | X52: =[83]!LOWERLIMITPRICE -> 0.2 | Y52: =[83]!UPPERLIMITPRICE -> 236.6 | Z52: =[83]!LOW -> 4.2 | AA52: =[83]!HIGH -> 5.6 | AB52: =[83]!OPENPRICE -> 5 | AC52: =[83]!OPTION_RHO -> 0.1648947394 | AD52: =[83]!OPTION_THETA -> -0.2839346066 | AE52: =[83]!OPTION_VEGA -> 0.9636772861 | AF52: =[83]!OPTION_GAMMA -> 0.0005398639347 | AG52: =[83]!OPTION_DELTA -> 0.05879563823 | AH52: =[83]!OPTION_MIDVOLATILITY -> 26.42212826 | AI52: =[83]!OPTION_ASKVOLATILITY -> 26.73340755 | AJ52: =[83]!OPTION_BIDVOLATILITY -> 26.11084897 | AK52: =[83]!OPTION_VOLATILITY -> 26.73340755 | AL52: =[83]!INTRINSICVALUE -> 0 | AM52: =[83]!TIMEVALUE -> 5.6 | AN52: =[83]!POSIVOL -> 1120 | AO52: =[83]!TRADEVOLUME -> 14 | AP52: =[83]!ASKVOLUME1 -> 41 | AQ52: =[83]!ASKPRICE1 -> 5.6 | AR52: =[83]!BIDPRICE1 -> 5 | AS52: =[83]!BIDVOLUME1 -> 24 | AT52: =[83]!NETCHANGERATE -> +3.70% | AU52: =[83]!NETCHANGE -> 0.2 | AV52: =[83]!MTMPL2375314700 -> 0 | AW52: =[83]!NETVOLUME2375314700 -> 0 | AX52: =[83]!LASTPRICE -> 5.6 | AY52: 2700 | AZ52: =[84]!LASTPRICE -> 389.2 | BA52: =[84]!NETVOLUME2375314700 -> 0 | BB52: =[84]!MTMPL2375314700 -> 0 | BC52: =[84]!NETCHANGE -> 3.2 | BD52: =[84]!NETCHANGERATE -> +0.83% | BE52: =[84]!BIDVOLUME1 -> 6 | BF52: =[84]!BIDPRICE1 -> 388.8 | BG52: =[84]!ASKPRICE1 -> 391.2 | BH52: =[84]!ASKVOLUME1 -> 6 | BI52: =[84]!TRADEVOLUME -> 2 | BJ52: =[84]!POSIVOL -> 224 | BK52: =[84]!TIMEVALUE -> -1 | BL52: =[84]!INTRINSICVALUE -> 390.2 | BM52: =[84]!OPTION_VOLATILITY -> 31.45752848 | BN52: =[84]!OPTION_BIDVOLATILITY -> 31.16455974 | BO52: =[84]!OPTION_ASKVOLATILITY -> 32.81250891 | BP52: =[84]!OPTION_MIDVOLATILITY -> 31.98853432 | BQ52: =[84]!OPTION_DELTA -> -0.898774447 | BR52: =[84]!OPTION_GAMMA -> 0.0006734383264 | BS52: =[84]!OPTION_VEGA -> 1.45536418 | BT52: =[84]!OPTION_THETA -> -0.3706407577 | BU52: =[84]!OPTION_RHO -> -3.114004352 | BV52: =[84]!OPENPRICE -> 387.2 | BW52: =[84]!HIGH -> 389.2 | BX52: =[84]!LOW -> 387.2 | BY52: =[84]!UPPERLIMITPRICE -> 617.2 | BZ52: =[84]!LOWERLIMITPRICE -> 154.8 | CA52: =[84]!CLOSEPRICE ->  | CB52: =[84]!SETTLEPRICE ->  | CC52: =[84]!PRECLOSE -> 383 | CD52: =[84]!PRESETTLEPRICE -> 386 | CE52: CFFEX | CF52: HO | CG52: =[84]!INST_STATE -> 连续交易 | CH52: =[84]!UPDATETIME -> 10:48:52.900 | CI52: 100 | CJ52: 20240315
